Cogmind - Beta 11 X3 @@@ ROGUE MODE // 2021.03.20 @ 15:59:37 Player: cptwinky Result: Destroyed by B-99 Colossus with Linear Accelerator Performance ------------- Evolutions (9) 4500 Regions Visited (33) 6600 Robots Destroyed (609) 3045 Value Destroyed (31372) 31372 Prototype IDs (77) 1540 Alien Tech Used (14) 2800 Bonus (19148) 19148 TOTAL SCORE: 69005 Bonus ------- Triggered High Security 500 High Alert Combat Kills 9645 Follower Combat Kills 1143 Met Data Miner 300 Met Imprinter 300 Met Zhirov 300 Met Warlord at Base 500 MAIN.C Attacked Warlord 500 Warlord Defense Kill 4476 Hacked Protovariant 500 Met Warlord at Research 2000 Scanned by Researcher 500 Friendly Fire -1516 Cogmind --------- Core Integrity 0/1600 Matter 300/300 Energy 100/100 System Corruption 0% Temperature Cool (0) Movement Core (50) Location -1/Access Parts ------- > --- POWER (3) -------- (None) > --- PROPULSION (6) --- (None) > --- UTILITY (14) ----- Spacefold Activator > --- WEAPON (3) ------- (None) > --- INVENTORY (5) ---- Microwarp Drive Core Stripper Peak State ------------ > --- POWER ------------ Improved Quantum Reactor Vortex Chain Reactor > --- PROPULSION ------- Armored Heavy Treads Biometal Heavy Treads Experimental Biometal Heavy Treads > --- UTILITY ---------- Huge Storage Unit Advanced Energy Well Experimental Sensor Array Advanced Signal Interpreter 0b10 Decoder Chip [Generic] Experimental Melee Analysis Suite Experimental Melee Analysis Suite Advanced Armor Integrity Analyzer Advanced Transmission Jammer Heavy Regenerative Plating Experimental Force Field Advanced Hacking Suite Ghost Barrier > --- WEAPON ----------- Cooled Nova Cannon Sigix Broadsword > --- INVENTORY -------- Light Quantum Reactor Improved Heavy Siege Treads Advanced Matter Compressor Inertial Stasis Machine Microactuators ECM Suite Experimental Weapon Shielding Centrium Medium Armor Plating Experimental Shock Absorption System EM Dispersion Field AEGIS Remote Shield System Purifier High-powered Transdimensional Reconstructor Spacefold Activator Microwarp Drive Compact HERF Cannon Fusion Bomb Launcher Advanced Micro-nuke Launcher Containment Facilitator Core Stripper Plasma Lance Enhanced Force Lance [Rating: 247] Favorites ----------- Power Micro Fission Core Engine Cooled Ion Engine Power Core Micro Fission Core Reactor Reinforced Antimatter Reactor Propulsion Heavy Treads Treads Heavy Treads Leg Carbon-fiber Leg Wheel Armored Wheel Utility Huge Storage Unit Device Advanced Cooling System Storage Huge Storage Unit Processor Advanced Signal Interpreter Hackware Advanced Hacking Suite Protection Hardened Medium Armor Plating Artifact Phase Redirector Weapon Enhanced Autogun Energy Gun Heavy Beamcaster Energy Cannon Nova Cannon Ballistic Gun Enhanced Autogun Ballistic Cannon Hypervelocity Mass Driver Launcher Heavy Shock Bomb Launcher Special Weapon Plasma Flamer Impact Weapon Heavy Flail Slashing Weapon Sigix Broadsword Piercing Weapon Plasma Lance Special Melee Weapon Datajack Build | -11 -10 -10 -9 -9 -9 -8 -8 -7 -7 -7 -7 -6 -6 -6 -6 -6 -5 -5 -5 -5 -5 -4 -4 -4 -4 -4 -3 -3 -3 -2 -2 -2 -1 ------- Run | Scr Mat Min Mat Min Exi Min Mat Fac Low Low Zio Pro Fac Low Low Dat Pro Fac Upp Upp Zhi Pro Fac Upp Upp War Pro Res Qua Res Tes Sec Acc Slots Evolved 18 | . . . 2 . . . 2 2 . . . . 2 . . . . 2 . . . . 2 . . . . 2 . 2 . . 2 Power 2 | . . . . . . . . . . . . . . . . . . 1 . . . . . . . . . . . 1 . . . Propulsion 4 | . . . 1 . . . . 1 . . . . 1 . . . . . . . . . 1 . . . . . . . . . . Utility 11 | . . . 1 . . . 1 1 . . . . 1 . . . . 1 . . . . 1 . . . . 2 . 1 . . 2 Weapon 1 | . . . . . . . 1 . . . . . . . . . . . . . . . . . . . . . . . . . . Parts Attached 674 | 6 8 4 28 4 . 9 39 23 15 21 7 3 41 3 6 1 10 41 17 11 10 8 24 15 8 21 11 9 80 12 42 66 71 Power 39 | 1 1 . 2 . . . 5 . . 1 1 . 4 . . . . 5 . . 1 . . . . 3 . 2 3 1 4 2 3 Engine 12 | 1 1 . . . . . 3 . . 1 1 . 3 . . . . 2 . . . . . . . . . . . . . . . Core 10 | . . . 2 . . . 2 . . . . . 1 . . . . 3 . . . . . . . 2 . . . . . . . Reactor 17 | . . . . . . . . . . . . . . . . . . . . . 1 . . . . 1 . 2 3 1 4 2 3 Propulsion 70 | 2 1 . 8 . . 4 8 4 . . . . 4 . . . 1 5 . . 3 1 2 . 1 3 . 1 10 1 5 3 3 Treads 65 | 2 1 . 8 . . 2 7 4 . . . . 4 . . . 1 4 . . 2 1 2 . 1 3 . 1 10 1 5 3 3 Leg 2 | . . . . . . . . . . . . . . . . . . 1 . . 1 . . . . . . . . . . . . Wheel 3 | . . . . . . 2 1 . . . . . . . . . . . . . . . . . . . . . . . . . . Hover . | . . . . . . . . . . . . . . . . . . . . . . . . . . . . . . . . . . Flight . | . . . . . . . . . . . . . . . . . . . . . . . . . . . . . . . . . . Utility 302 | 1 3 1 6 . . . 9 8 9 12 6 3 16 3 . . 3 14 6 1 5 4 9 9 4 6 5 5 47 8 21 38 40 Device 190 | . 2 . 2 . . . 2 2 6 6 2 2 5 2 . . 2 9 6 1 4 4 7 6 4 3 3 2 33 5 12 33 25 Storage 15 | 1 1 1 2 . . . . 2 . . . . . . . . . . . . 1 . . . . . . . 5 . . . 2 Processor 21 | . . . . . . . . . 1 . 4 . . . . . . 1 . . . . . 1 . 1 2 1 3 3 3 . 1 Hackware 10 | . . . . . . . 1 2 . . . . 1 . . . . 1 . . . . 2 . . . . 1 1 . 1 . . Protection 54 | . . . 2 . . . 6 2 2 6 . 1 10 1 . . 1 3 . . . . . 2 . 2 . 1 3 . 5 2 5 Artifact 12 | . . . . . . . . . . . . . . . . . . . . . . . . . . . . . 2 . . 3 7 Weapon 263 | 2 3 3 12 4 . 5 17 11 6 8 . . 17 . 6 1 6 17 11 10 1 3 13 6 3 9 6 1 20 2 12 23 25 Energy Gun 36 | . . 3 9 . . . 1 . . . . . . . . . . 6 5 4 1 2 5 . . . . . . . . . . Energy Cannon 39 | . . . . . . 1 1 . . . . . . . . . . 1 . 1 . 1 2 . 1 4 . 1 8 1 3 8 6 Ballistic Gun 64 | 2 1 . . 3 . 2 9 6 3 4 . . 10 . 2 1 5 4 . . . . 3 2 1 . 1 . 4 1 . . . Ballistic Cannon 20 | . 1 . 1 . . . 3 . . . . . 1 . 1 . . . 1 . . . 1 3 . 3 2 . 2 . 1 . . Launcher 37 | . . . 1 1 . 2 2 . . 1 . . 2 . . . 1 3 1 3 . . 2 1 1 1 2 . . . 1 3 9 Special Weapon 7 | . . . . . . . . . . 2 . . . . . . . . 1 1 . . . . . . 1 . 2 . . . . Impact Weapon 20 | . . . 1 . . . 1 2 3 1 . . 4 . 2 . . 2 1 . . . . . . . . . . . 1 2 . Slashing Weapon 5 | . . . . . . . . . . . . . . . . . . . . . . . . . . . . . 1 . 2 2 . Piercing Weapon 22 | . . . . . . . . . . . . . . . . . . . . . . . . . . . . . . . 4 8 10 Special Melee Weapon 13 | . 1 . . . . . . 3 . . . . . . 1 . . 1 2 1 . . . . . 1 . . 3 . . . . Unidentified Prototypes 53 | . . . 1 . . . 3 . 1 2 3 . 1 . . . . . . . 5 . . . . 3 . 1 7 2 11 11 2 Parts Lost 93 | . 1 1 6 . . 5 6 . . 1 . . 8 . . . 1 5 . 1 . 3 5 . . 6 . 2 8 1 1 1 31 Power 8 | . 1 . . . . . . . . 1 . . . . . . . . . . . . . . . 1 . . . . . . 5 Propulsion 18 | . . . 1 . . 4 2 . . . . . 1 . . . . 2 . . . 1 . . . . . . . . . 1 6 Utility 44 | . . . 1 . . . 2 . . . . . 6 . . . 1 2 . 1 . 1 2 . . 4 . 1 3 1 1 . 18 Weapon 23 | . . 1 4 . . 1 2 . . . . . 1 . . . . 1 . . . 1 3 . . 1 . 1 5 . . . 2 Highest Loss Streak 12 | . 1 1 2 . . 3 2 . . 1 . . 5 . . . 1 1 . 1 . 2 1 . . 5 . 2 2 1 1 1 12 Average Slot Usage (%) 87 | . 90 100 99 100 100 99 99 91 84 85 84 85 85 87 87 81 86 87 88 87 87 85 83 85 85 83 84 85 82 84 81 74 72 Engine 3 | . 13 14 . . . . 6 7 7 7 6 7 5 6 6 6 6 6 . . . . . . . . . . . . . . . Core 3 | . . . 10 11 11 11 2 . . . . . . . . . . 4 11 11 8 5 5 5 5 4 5 3 . . . . . Reactor 3 | . . . . . . . . . . . . . . . . . . . . . 2 5 5 5 5 5 5 4 9 10 10 8 7 Treads 17 | . 27 28 32 33 33 23 20 22 14 14 14 14 17 18 18 18 18 15 16 16 16 13 15 15 15 15 15 13 14 15 12 12 10 Device 10 | . 5 14 11 11 11 11 5 6 11 13 12 4 4 5 6 6 5 6 11 14 15 19 19 16 15 15 23 17 10 10 13 7 10 Storage 7 | . 14 14 11 11 11 11 9 7 7 7 7 7 6 6 6 6 6 5 5 5 5 5 5 5 5 5 5 4 5 8 5 4 6 Processor 10 | . . . . . . . . . 6 7 8 14 12 12 12 12 12 16 16 16 16 12 10 12 15 14 15 22 19 20 16 20 18 Hackware 4 | . . . . . . . 9 15 . . . . 6 6 6 6 6 9 5 5 5 5 8 6 5 2 . 3 8 4 7 8 4 Protection 6 | . . . 10 11 11 11 12 7 16 14 14 16 12 12 12 12 12 5 5 1 . . . 4 5 6 . . 1 4 4 3 4 Energy Gun 4 | . . 26 20 4 . . . . . . . . . . . . . 2 15 13 13 15 9 . . . . . . . . . . Energy Cannon 1 | . . . . . . 5 1 . . . . . . . . . . . . 1 2 . . . 2 5 . 1 6 4 1 1 . Ballistic Gun 9 | . 22 . . 17 22 16 23 22 20 17 21 21 17 18 17 . 17 12 . . . . 3 8 9 5 4 2 . . . . . Naked Turns . | . . . . . . . . . . . . . . . . . . . . . . . . . . . . . . . . . . Heaviest Build 199 | 11 31 52 60 60 60 61 76 115 123 126 111 116 119 117 123 115 123 132 117 117 123 131 131 137 134 178 156 178 181 189 193 186 199 Greatest Support 265 | 40 40 40 60 60 60 60 60 140 140 140 140 140 170 160 160 160 160 163 163 163 163 167 210 210 210 215 200 200 205 220 255 265 220 Greatest Overweight (x) 38 | . . 1 . . . 5 5 . . . . . . . . . . . . . . . . . . . . . 1 . . . 38 Average Overweight (x) . | . . . . . . 1 1 . . . . . . . . . . . . . . . . . . . . . . . . . . Largest Inventory Capacity 25 | 8 15 20 25 20 20 20 20 25 25 25 25 25 25 25 25 25 25 25 25 25 25 25 25 25 25 25 25 25 25 25 25 25 25 Average Capacity 23 | 6 14 18 20 20 20 20 20 22 25 25 25 25 25 25 25 25 25 25 25 25 25 25 25 25 25 25 25 25 25 25 25 25 24 Most Carried 25 | 4 15 19 20 20 20 20 20 25 25 25 25 25 25 25 25 25 25 25 25 25 25 25 25 25 25 25 25 25 25 25 25 25 25 Average Carried 22 | 2 9 17 19 19 19 18 19 21 20 23 24 25 24 24 25 25 24 23 24 24 24 24 24 24 24 24 21 24 24 23 24 24 21 Final Capacity 25 | 8 15 20 20 20 20 20 20 25 25 25 25 25 25 25 25 25 25 25 25 25 25 25 25 25 25 25 25 25 25 25 25 25 5 Final Carried 25 | 4 15 18 20 19 20 16 20 24 20 25 25 25 23 25 25 25 24 25 25 24 25 25 25 25 25 23 25 25 25 24 25 21 4 Class Distribution -------------------- 22% | Mutant 10% | Generator-Gladiator 10% | Skirmisher 10% | Tank 7% | Hacker-Mutant 7% | Scavenger-Skirmisher 5% | Scavenger-Tank 3% | Scavenger-Mutant 3% | Hacker-Gladiator Dominant Class ---------------- Mutant | -10/Materials Mutant | -10/Mines Mutant | -9/Materials Mutant | -9/Mines Mutant | -9/Exiles Mutant | -8/Mines Scavenger-Tank | -8/Materials Hacker-Tank | -7/Factory Tank | -7/Lower Caves Mutant | -7/Lower Caves Skirmisher | -7/Zion Skirmisher | -6/Proximity Caves Skirmisher | -6/Factory Tank | -6/Lower Caves Tank | -6/Lower Caves Scavenger-Mutant | -6/Data Miner Tank | -5/Proximity Caves Hacker-Skirmisher | -5/Factory Skirmisher | -5/Upper Caves Skirmisher | -5/Upper Caves Scavenger-Skirmisher | -5/Zhirov Scavenger-Skirmisher | -4/Proximity Caves Hacker-Skirmisher | -4/Factory Scavenger-Skirmisher | -4/Upper Caves Scavenger-Skirmisher | -4/Upper Caves Derelict-Mutant | -4/Warlord Scavenger-Mutant | -3/Proximity Caves Scavenger-Skirmisher | -3/Research Hacker-Mutant | -3/Quarantine Scavenger-Gladiator | -2/Research Hacker-Gladiator | -2/Testing Generator-Gladiator | -2/Section 7 Generator-Gladiator | -1/Access Resources | -11 -10 -10 -9 -9 -9 -8 -8 -7 -7 -7 -7 -6 -6 -6 -6 -6 -5 -5 -5 -5 -5 -4 -4 -4 -4 -4 -3 -3 -3 -2 -2 -2 -1 ----------- Run | Scr Mat Min Mat Min Exi Min Mat Fac Low Low Zio Pro Fac Low Low Dat Pro Fac Upp Upp Zhi Pro Fac Upp Upp War Pro Res Qua Res Tes Sec Acc Matter Collected 14096 | 150 373 114 499 78 . 233 1131 793 250 595 47 80 1329 355 22 . 328 1084 299 222 106 92 596 297 125 751 154 458 1696 120 491 541 687 Remotely 141 | . . . . . . . . . . . . . . . . . . . . . . . . . . . . . 141 . . . . Salvage Created 27729 | . 522 296 1845 158 . 526 2031 1075 188 608 . 103 1640 308 . . 194 1824 87 267 106 278 1067 281 54 1264 117 282 2507 401 1806 3025 4869 Parts 1215 | . 41 8 104 7 . 38 125 53 12 25 . 4 96 5 . . 8 64 6 15 2 . 41 14 5 45 13 17 100 15 52 103 197 Haulers Intercepted 17 | . 1 . 6 . . . 6 2 . 1 . . . . . . . . . . . . . . . . . . . 1 . . . Recyclers Shooed 12 | . . 1 1 . . . 3 . . . . . 2 . . . . 1 . . . . . . . . . . . . . . 4 Parts Field Recycled . | . . . . . . . . . . . . . . . . . . . . . . . . . . . . . . . . . . Retrieved Matter . | . . . . . . . . . . . . . . . . . . . . . . . . . . . . . . . . . . Parts Self-Destructed 203 | . . . . . . . . . 5 24 . 4 . 3 . . 13 . 4 7 . . . 6 1 131 5 . . . . . . Prevented 27 | . . . . . . . . . 7 4 . . . . . . . . . . . . . 8 . 8 . . . . . . . Kills | -11 -10 -10 -9 -9 -9 -8 -8 -7 -7 -7 -7 -6 -6 -6 -6 -6 -5 -5 -5 -5 -5 -4 -4 -4 -4 -4 -3 -3 -3 -2 -2 -2 -1 ------- Run | Scr Mat Min Mat Min Exi Min Mat Fac Low Low Zio Pro Fac Low Low Dat Pro Fac Upp Upp Zhi Pro Fac Upp Upp War Pro Res Qua Res Tes Sec Acc Combat Hostiles Destroyed 487 | . 14 6 28 3 . 18 33 14 2 15 . 4 27 1 . . 2 30 5 13 . 4 16 5 5 34 9 7 40 2 15 41 94 Melee 88 | . . . . . . . . . . . . . . . . . . . . . . . . . . 1 . . 9 2 11 26 39 Guns 166 | . 13 5 20 1 . 10 20 14 2 11 . 4 26 1 . . 2 20 1 2 . 3 7 . . . 2 . 2 . . . . Cannons 95 | . 1 . . . . 6 9 . . . . . . . . . . . . . . . 4 3 . 24 . 7 29 . 2 4 6 AOE 125 | . . . 5 2 . 2 3 . . 4 . . 1 . . . . 8 4 11 . . 5 1 5 9 7 . . . . 9 49 Classes Destroyed 28 | . 5 2 2 . . . 2 1 2 2 . . 2 . . . . 1 . . . . . . . 3 . . 2 1 1 1 1 Worker 29 | . 1 . 2 . . 1 2 3 . . . . 7 . . . . 1 . . . . 4 . . . . . . . 1 1 6 Builder 13 | . 3 . . 1 . . 2 1 . . . . . . . . . 1 . . . . 1 . . . . . . . . . 4 Tunneler 2 | . . . . . . . . . . . . . 1 . . . . . . . . . . . . . . . . . . . 1 Hauler 17 | . 1 . 6 . . . 6 2 . 1 . . . . . . . . . . . . . . . . . . . 1 . . . Recycler 16 | . . 1 1 . . 1 3 1 . . . . 1 . . . . 2 . . . . 2 . . . . . . . . 1 3 Carrier 1 | . . . . . . . . . . . . . . . . . . . . . . . . . . . . . . 1 . . . Minesweeper 2 | . . . . . . . . . . 1 . . . . . . . . . . . . . . . . 1 . . . . . . Mechanic 4 | . . . . . . . . 1 . . . . . . . . . . . . . . . . . . . . 1 . . . 2 Operator 5 | . . . . . . . 2 1 . . . . . . . . . . . . . . . . . . . . . . . 1 1 Watcher 26 | . . . 5 . . . 3 1 . . . . 2 . . . . 1 . . . . 2 . . . . . 3 2 2 4 1 Swarmer 115 | . 6 3 3 . . 13 8 4 . 4 . 4 4 . . . 1 . 5 13 . . 4 . 5 4 9 5 . . . 4 16 Saboteur 6 | . . . . . . . . . . . . . . . . . . . . . . . . . . . . . . . . . 6 Grunt 164 | . 8 2 17 3 . 4 17 3 . 6 . . 6 . . . . 21 . . . 2 4 . . 10 . . 17 . 3 14 27 Brawler 17 | . . . . . . . . . . 1 . . 2 . . . . 2 . . . . . . . 2 . . . . . 3 7 Duelist 16 | . . . 1 . . 1 1 . . 1 . . 1 . . . . . . . . 1 . . . 2 . . 2 . . . 6 Protector 11 | . . . . . . . . . . . . . . . . . . 1 . . . . . . . 6 . . . . . 1 3 Researcher 2 | . . . . . . . . . 1 . . . . . . . . . . . . . . . . . . . . . 1 . . Sentry 41 | . . 1 7 . . . 5 4 . 1 . . 6 . . . 1 2 . . . 1 2 1 . . . 2 . 1 . 5 2 Demolisher 3 | . . . . . . . . . . . . . . . . . . . . . . . . . . 3 . . . . . . . Specialist 3 | . . . . . . . . . . . . . . . . . . . . . . . . . . . . . 3 . . . . Hunter 35 | . . . . . . . 2 3 1 1 . . 1 . . . . 2 . . . . 2 2 . 2 . . 2 . 4 2 11 Programmer 47 | . . . . . . . . . . . . . 6 1 . . . 2 . . . . 4 2 . . . . 7 1 7 7 10 Q-Series 4 | . . . . . . . . . . . . . . . . . . . . . . . . . . . . . . . . 2 2 Behemoth 5 | . . . . . . . . . 1 1 . . 1 . . . . . . . . . . . . 1 . . . . . . 1 Quarantine Guard 8 | . . . . . . . . . . . . . . . . . . . . . . . . . . . . . 8 . . . . S7 Guard 3 | . . . . . . . . . . . . . . . . . . . . . . . . . . . . . . . . 3 . Enhanced Grunt 1 | . . . . . . . . . . . . . . . . . . 1 . . . . . . . . . . . . . . . Investigator 1 | . . . . . . . . . . . . . . . . . . . . . . . . . . . . . . . 1 . . Striker 4 | . . . . . . . . . . . . . . . . . . . . . . . . . . 2 . . . . . . 2 Executioner 3 | . . . . . . . . . . . . . . . . . . . . . . . . . . 2 . . . . . . 1 Alpha 7 1 | . . . . . . . . . . . . . . . . . . . . . . . . . . . . . 1 . . . . Fortress 1 | . . . . . . . . . . . . . . . . . . . . . . . . . . . . . . . 1 . . Packrat 3 | . . . . . . . . . . . . . . 2 . . . . 1 . . . . . . . . . . . . . . Thug 3 | . . 2 . . . . . . . . . . . . . . . . . . . . . . . 1 . . . . . . . Best Kill Streak 30 | . 6 3 5 4 . 4 4 4 1 12 . 4 8 1 . . 1 8 5 9 . 3 6 2 5 9 4 5 7 1 4 9 30 Combat Bots Only 19 | . 5 3 5 3 . 4 4 4 1 12 . 4 7 1 . . 1 8 5 9 . 3 4 2 5 9 4 5 7 1 3 7 19 Max Kills in Single Turn 6 | . 2 2 3 2 . 2 3 2 1 2 . 2 3 1 . . 1 3 2 4 . 1 3 1 4 3 3 1 1 1 1 4 6 Gunslinging 1 | . . 1 . . . . 1 . . . . 1 1 . . . . . . . . . . . . . . . . . . . . Exploded 5 | . . . 3 2 . 1 2 . . 2 . . 1 . . . . 2 2 4 . . 2 1 4 2 3 . . . . 3 5 Melee 1 | . . . . . . . . . . . . . . . . . . . . . . . . . . 1 . . 1 1 1 1 1 Uniques/NPCs Destroyed . | . . . . . . . . . . . . . . . . . . . . . . . . . . . . . . . . . . Combat | -11 -10 -10 -9 -9 -9 -8 -8 -7 -7 -7 -7 -6 -6 -6 -6 -6 -5 -5 -5 -5 -5 -4 -4 -4 -4 -4 -3 -3 -3 -2 -2 -2 -1 -------- Run | Scr Mat Min Mat Min Exi Min Mat Fac Low Low Zio Pro Fac Low Low Dat Pro Fac Upp Upp Zhi Pro Fac Upp Upp War Pro Res Qua Res Tes Sec Acc Damage Taken 39614 | . 326 316 988 51 . 753 1587 974 274 1324 . 123 2273 38 . . 462 1918 147 395 . 436 1500 256 73 2023 319 658 4877 177 2464 3187 11695 Core 3875 | . 53 54 139 . . 21 166 57 46 129 . . 205 . . . 24 40 13 . . 39 83 16 . 151 37 . 437 . 207 347 1611 Absorbed by Shields 9973 | . . . . . . . . . . . . . . . . . . . . . . . . . . 237 . . 878 84 760 1503 6511 Reduced by Siege Mode 795 | . . . . . . . . 29 . . . 13 42 4 . . . 135 . . . 36 115 7 . . . 8 406 . . . . Redirected to Core 144 | . . . . . . . . . . . . . . . . . . . . . . . . . . . . . 144 . . . . Core Remaining (%) 71 | 100 . 57 . . . 60 69 . . . . 66 . . . . 73 . . . . 90 . . . . 75 . 66 . . 58 . Volleys Fired 1138 | . 41 30 83 8 . 38 101 64 10 61 . 3 100 12 . . 15 72 12 27 3 18 50 13 7 51 28 23 118 14 12 50 74 Largest 3 | . 2 2 2 2 . 2 3 3 3 3 . 3 3 3 . . 3 3 3 3 3 3 3 3 1 3 3 3 3 1 1 1 1 Hottest 280 | . 55 130 130 46 . 91 154 75 75 100 . 75 75 74 . . 74 180 180 193 193 193 197 155 110 266 199 242 280 113 113 94 94 Shots Fired 2390 | . 82 60 158 11 . 71 264 192 30 133 . 9 278 29 2 . 40 188 20 34 9 36 127 23 7 112 39 43 243 14 12 50 74 Gun 1608 | . 81 60 149 6 . 47 211 192 30 108 . 9 271 29 2 . 40 175 15 13 9 27 99 8 . . 9 . 18 . . . . Cannon 609 | . 1 . 7 . . 19 46 . . . . . 4 . . . . 6 . 2 . 9 25 11 4 104 9 43 216 14 12 43 34 Launcher 117 | . . . 2 5 . 5 7 . . 4 . . 3 . . . . 7 3 10 . . 3 4 3 8 6 . . . . 7 40 Special 56 | . . . . . . . . . . 21 . . . . . . . . 2 9 . . . . . . 15 . 9 . . . . Kinetic 1410 | . 82 . 7 6 . 47 209 192 30 108 . 9 275 29 2 . 40 122 . . . . 73 19 . 63 18 20 59 . . . . Thermal 657 | . . 60 5 . . 19 48 . . 21 . . . . . . . 59 17 24 9 36 51 . 4 2 15 23 184 14 3 37 26 Explosive 94 | . . . . . . . . . . 4 . . 3 . . . . 7 3 10 . . 3 . 3 8 6 . . . . 7 40 Electromagnetic 190 | . . . 146 5 . 5 7 . . . . . . . . . . . . . . . . 4 . . . . . . 9 6 8 Entropic 39 | . . . . . . . . . . . . . . . . . . . . . . . . . . 39 . . . . . . . Robot Hit Streak 57 | . 8 9 32 4 . 16 14 17 20 21 . 14 23 9 3 . 19 57 10 7 8 17 28 23 9 18 13 19 57 11 6 11 7 Robot Miss Streak 5 | . 2 3 2 2 . 1 3 4 1 4 . . 5 1 1 . 2 3 4 1 1 1 4 1 . 4 2 1 3 2 1 2 3 Penetration Max 1 | . . . . . . . 1 . . . . . . . . . . . . . . . 1 . . 1 . . . . . . . Secondary Targets 24 | . . 3 . . . 1 2 1 . 3 . 3 7 . . . . 3 . . . 1 . . . . . . . . . . . Max Gunslinging Chain 2 | . . 1 . . . 1 1 1 . 1 . 2 2 . . . . 1 . . . 1 . . . . . . . . . . . Shots Hit Robots 1980 | . 60 41 118 6 . 47 171 134 25 100 . 9 189 20 1 . 28 140 10 15 6 23 79 16 2 87 28 19 194 15 56 139 202 Core Hits 1143 | . 31 17 46 6 . 27 78 49 11 38 . 6 83 11 3 . 16 98 10 28 2 9 45 10 5 80 17 7 82 6 18 80 224 Critical Hits 221 | . 1 . 1 . . 3 4 . . 1 . . 16 2 . . 5 12 . . . . 13 1 . 40 6 7 43 3 10 23 30 Critical Kills 68 | . 1 . . . . 2 1 . . . . . 5 1 . . 1 3 . . . . 6 . . 9 2 4 15 1 . 10 7 Critical Parts Destroyed 129 | . . . 1 . . 1 3 . . . . . 10 1 . . 2 9 . . . . 6 1 . 19 4 1 28 2 10 10 21 Melee Attacks 489 | . . . 4 . . . 1 3 4 1 . . 5 . 2 . . 3 3 1 . . . . . 8 . . 41 15 70 144 184 Kinetic 12 | . . . . . . . . . . . . . . . . . . . . . . . . . . . . . . . 2 10 . Impact 24 | . . . 4 . . . 1 3 4 1 . . 5 . 2 . . 3 1 . . . . . . . . . . . . . . Slashing 346 | . . . . . . . . . . . . . . . . . . . . . . . . . . . . . 39 15 60 105 127 Piercing 94 | . . . . . . . . . . . . . . . . . . . . . . . . . . . . . . . 8 29 57 Sneak Attacks 30 | . . . . . . . . . . . . . . . . . . . 1 1 . . . . . 8 . . 4 2 4 6 4 Combat Hostiles 6 | . . . . . . . . . . . . . . . . . . . . . . . . . . . . . 3 . . 3 . Follow-up Attacks 42 | . . . . . . . . . . . . . . . . . . . . . . . . . . . . . . . 5 20 17 Damage Inflicted 96018 | . 680 713 2438 280 . 955 3952 2262 414 2314 . 151 4777 452 21 . 682 4602 698 1206 211 580 2989 536 456 7000 1442 484 8684 1336 4869 12960 27874 Guns 21398 | . 657 701 2015 53 . 488 2846 2194 414 1263 . 151 3632 452 21 . 682 2690 113 169 211 580 1620 195 . . 145 . 106 . . . . Cannons 14593 | . 18 . 68 . . 320 762 . . . . . . . . . . . . . . . 333 94 . 4528 107 484 5848 158 315 780 778 Explosions 29459 | . . . 285 211 . 146 342 . . 847 . . 913 . . . . 1905 559 938 . . 1029 247 456 2437 1021 . . . . 2427 15696 Melee 29462 | . . . . . . . . . . . . . . . . . . . . . . . . . . . . . 2593 1178 4554 9737 11400 Ramming 495 | . 5 12 70 16 . 1 2 68 . . . . 232 . . . . 7 . . . . 7 . . 35 . . 24 . . 16 . Kinetic 19316 | . 675 . 68 53 . 488 2864 2194 414 1263 . 151 3632 452 21 . 682 1772 . . . . 1165 289 . 997 252 163 1090 . 51 580 . Thermal 13166 | . . 701 187 51 . 362 795 . . 204 . . 642 . . . . 918 139 268 211 580 1378 . . . 169 321 4977 158 . 570 535 Explosive 26996 | . . . . . . . . . . 847 . . 271 . . . . 1905 559 938 . . 439 . 456 2437 1021 . . . . 2427 15696 Electromagnetic 3683 | . . . 2113 160 . 104 291 . . . . . . . . . . . . . . . . 247 . . . . . . 315 210 243 Impact . | . . . . . . . . . . . . . . . . . . . . . . . . . . . . . . . . . . Slashing 24947 | . . . . . . . . . . . . . . . . . . . . . . . . . . . . . 2593 1178 4282 7895 8999 Piercing 3884 | . . . . . . . . . . . . . . . . . . . . . . . . . . . . . . . 221 1262 2401 Entropic 3531 | . . . . . . . . . . . . . . . . . . . . . . . . . . 3531 . . . . . . . Highest Corruption 8 | . . . . . . . . . . . 2 2 8 8 8 8 8 . . . . . 2 2 . . . 1 2 . 4 1 . Average Corruption 4 | . . . . . . . . . . . 2 2 5 8 8 8 8 . . . . . 1 1 . . . 1 1 . 2 1 . Corruption Purged 14 | . . . . . . . . . . . . . . . . . . . . . . . . 3 . . . . 5 . 5 1 . Effects 122 | . . . . . . . . . . . 1 6 32 16 18 2 22 . . . . . 3 5 . . . . 8 . 8 1 . Message Errors 33 | . . . . . . . . . . . 1 2 6 4 5 2 5 . . . . . 1 2 . . . . 4 . 1 . . Matter Fused 29 | . . . . . . . . . . . . . 10 3 4 . 7 . . . . . . . . . . . . . 5 . . Heat Flow Errors 15 | . . . . . . . . . . . . 1 1 1 4 . 4 . . . . . 2 . . . . . . . 2 . . Energy Discharges 18 | . . . . . . . . . . . . 2 5 2 . . 4 . . . . . . 2 . . . . 3 . . . . Parts Rejected 2 | . . . . . . . . . . . . . 1 . . . 1 . . . . . . . . . . . . . . . . Data Loss (minor) 12 | . . . . . . . . . . . . 1 4 3 1 . . . . . . . . 1 . . . . 1 . . 1 . Data Loss (major) 4 | . . . . . . . . . . . . . 2 . 2 . . . . . . . . . . . . . . . . . . Misfires 6 | . . . . . . . . . . . . . 1 3 2 . . . . . . . . . . . . . . . . . . Weapon Failures 3 | . . . . . . . . . . . . . 2 . . . 1 . . . . . . . . . . . . . . . . Overload Shots . | . . . . . . . . . . . . . . . . . . . . . . . . . . . . . . . . . . Overflow Damage 4779 | . . . . . . 2 34 . . 20 . . 107 . . . . 17 31 106 . . 146 . . 205 56 . 225 211 616 1294 1709 Projectiles 638 | . . . . . . 2 2 . . 14 . . . . . . . . . . . . . . . 205 1 . 222 35 . 142 15 Explosions 1278 | . . . . . . . 32 . . 6 . . 107 . . . . 17 31 106 . . 146 . . . 55 . . . . 120 658 Melee 2863 | . . . . . . . . . . . . . . . . . . . . . . . . . . . . . 3 176 616 1032 1036 Knockbacks 37 | . . . 3 . . . 5 . . . . . 2 . . . . . . . . . 1 . . 9 3 . 14 . . . . Impact 3 | . . . . . . . . . . . . . 2 . . . . . . . . . . . . 1 . . . . . . . Kinetic 32 | . . . 3 . . . 4 . . . . . . . . . . . . . . . 1 . . 8 3 . 13 . . . . Secondary 2 | . . . . . . . 1 . . . . . . . . . . . . . . . . . . . . . 1 . . . . Self-Inflicted Damage 1219 | . . . . 25 . 19 . . . . . . 45 . . . . 84 38 39 . . 65 . . . 94 . . . . 10 800 Shots 27 | . . . . 2 . 2 . . . . . . 2 . . . . 2 2 1 . . 1 . . . 2 . . . . 1 12 Rammed 45 | . 5 1 7 1 . 1 2 4 . . . . 17 . . . . 2 . . . . . . . 1 . 1 2 . . 1 . Targets Rammed 51 | . 5 1 9 1 . 1 2 5 . . . . 18 . . . . 2 . . . . 1 . . 2 . 1 2 . . 1 . Kicked . | . . . . . . . . . . . . . . . . . . . . . . . . . . . . . . . . . . Crushed 6 | . . . 2 . . . . 1 . . . . 1 . . . . . . . . . 1 . . 1 . . . . . . . Highest Temperature 373 | . 12 234 69 . . 2 337 24 11 22 . 181 373 140 272 . 272 364 112 216 180 . 106 . . 287 . 54 228 . 116 72 . Average Temperature 78 | . 7 81 10 . . 1 110 10 8 13 . 67 73 45 120 . 98 82 61 73 96 . 60 . . 96 . 21 73 . 75 14 . Received Heat Transfer 4553 | . 141 90 342 18 . 189 567 99 24 204 . . 288 . . . 54 441 . . . 126 174 . . 375 . 27 301 17 67 329 680 Effects 10 | . . . . . . . 7 . . . . . 2 . 1 . . . . . . . . . . . . . . . . . . Energy Bleed 1 | . . . . . . . 1 . . . . . . . . . . . . . . . . . . . . . . . . . . Interference 9 | . . . . . . . 6 . . . . . 2 . 1 . . . . . . . . . . . . . . . . . . Siege Activations 40 | . . . . . . . . 1 1 1 . 2 7 1 . . 1 9 . . . 1 3 2 . 2 . 1 8 . . . . Total Turns 879 | . . . . . . . . 22 33 5 . 59 98 23 . . 15 153 . . . 25 86 46 . 130 . 10 174 . . . . Longest Duration 107 | . . . . . . . . 22 33 5 . 51 38 23 . . 15 35 . . . 25 44 37 . 107 . 10 38 . . . . Robots Corrupted 7 | . . . 3 . . . 1 . . . . . . . . . . . . . . . . 1 . . . . . . 2 . . Combat Hostiles 6 | . . . 3 . . . 1 . . . . . . . . . . . . . . . . 1 . . . . . . 1 . . Parts Fried 24 | . . . 16 . . . 2 . . . . . . . . . . . . . . . . 3 . . . . . . 2 . 1 Impact Corruptions 1 | . . . . . . . 1 . . . . . . . . . . . . . . . . . . . . . . . . . . Robots Melted 6 | . . 1 . . . . . . . 1 . . . . . . . 2 . . . 1 . . . . . . 1 . . . . Combat Hostiles 4 | . . 1 . . . . . . . . . . . . . . . 2 . . . 1 . . . . . . . . . . . Parts Melted 35 | . . 3 . . . 1 2 1 . . . . . . . . . 4 . . . 8 5 . . 3 . . 5 . . . 3 Heat Transferred 18331 | . . 1665 274 100 . 705 1382 . . 1440 . . 450 . . . . 1727 384 899 285 1005 1510 . . . 1040 200 4266 148 . 407 444 Parts Sabotaged 2 | . . . . . . . . . . . . . . . . . . . . . . . . . . . . . . . . . 2 Parts Stolen . | . . . . . . . . . . . . . . . . . . . . . . . . . . . . . . . . . . Parts Stripped . | . . . . . . . . . . . . . . . . . . . . . . . . . . . . . . . . . . Power Chain Reactions 7 | . . . 4 1 . 1 1 . . . . . . . . . . . . . . . . . . . . . . . . . . Missiles Intercepted . | . . . . . . . . . . . . . . . . . . . . . . . . . . . . . . . . . . Alert | -11 -10 -10 -9 -9 -9 -8 -8 -7 -7 -7 -7 -6 -6 -6 -6 -6 -5 -5 -5 -5 -5 -4 -4 -4 -4 -4 -3 -3 -3 -2 -2 -2 -1 ------- Run | Scr Mat Min Mat Min Exi Min Mat Fac Low Low Zio Pro Fac Low Low Dat Pro Fac Upp Upp Zhi Pro Fac Upp Upp War Pro Res Qua Res Tes Sec Acc Peak Influence 3334 | . 293 70 432 112 . 323 496 633 . . . . 808 . . . . 1017 . . . . 1389 . . . . 299 978 542 538 1055 3334 Initial 625 | . . 19 . 18 . . 88 76 . . . . 56 . . . . . . . . . . . . . . 104 70 535 191 302 625 Average 405 | . 89 37 166 41 . 141 238 338 . . . . 293 . . . . 395 . . . . 604 . . . . 162 499 447 242 547 1592 Maximum Alert Level 5 | . 1 . 2 . . 1 2 2 . . . . 3 . . . . 3 . . . . 4 . . . . 1 3 2 2 3 5 Low Security (%) 44 | 100 89 100 64 100 . 65 42 41 . . . . 55 . . . . 38 . . . . 44 . . . . 74 24 . 38 21 . Level 1 19 | . 10 . 29 . . 34 46 8 . . . . 10 . . . . 18 . . . . 6 . . . . 25 11 33 47 13 . Level 2 18 | . . . 6 . . . 10 49 . . . . 25 . . . . 10 . . . . 3 . . . . . 36 66 14 33 11 Level 3 9 | . . . . . . . . . . . . . 8 . . . . 32 . . . . 6 . . . . . 27 . . 31 7 Level 4 4 | . . . . . . . . . . . . . . . . . . . . . . . 38 . . . . . . . . . 41 Level 5 1 | . . . . . . . . . . . . . . . . . . . . . . . . . . . . . . . . . 14 High Security 1 | . . . . . . . . . . . . . . . . . . . . . . . . . . . . . . . . . 25 Max Security . | . . . . . . . . . . . . . . . . . . . . . . . . . . . . . . . . . . Squads Dispatched 105 | . 4 . 5 . . 1 5 6 . . . . 14 . . . . 7 . . . . 7 . . . . . 7 2 10 12 25 Investigation 16 | . 2 . 1 . . . 1 3 . . . . 2 . . . . . . . . . 1 . . . . . 1 1 1 1 2 Extermination 28 | . . . . . . . . 3 . . . . 4 . . . . 2 . . . . 3 . . . . . 4 . 5 5 2 Reinforcement 30 | . 2 . 4 . . 1 3 . . . . . 5 . . . . 4 . . . . 2 . . . . . 1 1 3 1 3 Assault 27 | . . . . . . . . . . . . . . . . . . 1 . . . . 1 . . . . . 1 . 1 5 18 Garrison 4 | . . . . . . . 1 . . . . . 3 . . . . . . . . . . . . . . . . . . . . Intercept . | . . . . . . . . . . . . . . . . . . . . . . . . . . . . . . . . . . Construction Impeded 9 | . . . . . . 1 . . . . . . 2 . . . . 2 . . . . . . . . . . 1 . . . 3 Haulers Reinforced 4 | . . . . . . . . . . . . . 1 . . . . 1 . . . . 1 . . . . . . . 1 . . Stealth | -11 -10 -10 -9 -9 -9 -8 -8 -7 -7 -7 -7 -6 -6 -6 -6 -6 -5 -5 -5 -5 -5 -4 -4 -4 -4 -4 -3 -3 -3 -2 -2 -2 -1 --------- Run | Scr Mat Min Mat Min Exi Min Mat Fac Low Low Zio Pro Fac Low Low Dat Pro Fac Upp Upp Zhi Pro Fac Upp Upp War Pro Res Qua Res Tes Sec Acc Distress Signals 34 | . 3 . 3 . . . 4 1 . . . . 3 . . . . 7 . . . . 2 . . . . 1 2 3 1 1 3 Communications Jammed 64 | . . . . . . . . . . . . . . . . . . . . . . . . . . . . . 13 . . 12 39 Distress Signals 64 | . . . . . . . . . . . . . . . . . . . . . . . . . . . . . 13 . . 12 39 Times Spotted 776 | . 30 7 47 5 . 27 54 24 3 19 1 4 40 1 . . 7 59 5 7 . 4 21 4 5 71 7 10 56 12 32 60 154 Peak Tracking Total 21 | . 4 3 6 3 . 4 5 5 1 5 1 4 7 1 . . 4 8 5 6 . 3 4 2 5 13 4 6 6 3 4 6 21 Tactical Retreats 50 | . 1 . 3 . . 6 5 1 1 2 . . 1 . . . . 8 . . . . . . . . 3 . 4 . 3 7 5 Traps | -11 -10 -10 -9 -9 -9 -8 -8 -7 -7 -7 -7 -6 -6 -6 -6 -6 -5 -5 -5 -5 -5 -4 -4 -4 -4 -4 -3 -3 -3 -2 -2 -2 -1 ------- Run | Scr Mat Min Mat Min Exi Min Mat Fac Low Low Zio Pro Fac Low Low Dat Pro Fac Upp Upp Zhi Pro Fac Upp Upp War Pro Res Qua Res Tes Sec Acc Traps Triggered 5 | . . . . . . . 1 . . . . . . . . . . . . . . . . . . . . . . . . 2 2 Indirectly . | . . . . . . . . . . . . . . . . . . . . . . . . . . . . . . . . . . Trap Hack Attempts 150 | . 40 . . . . . . 57 . . . . . . . . . 7 . . . . . . . . . . 46 . . . . Triggered 1 | . . . . . . . . 1 . . . . . . . . . . . . . . . . . . . . . . . . . Disarmed 2 | . 1 . . . . . . 1 . . . . . . . . . . . . . . . . . . . . . . . . . Reprogrammed 25 | . 3 . . . . . . 11 . . . . . . . . . 1 . . . . 5 . . . . . 5 . . . . Reused 15 | . . . . . . . . 1 3 2 . . . . . . . 1 . . . 2 . . . . . . 6 . . . . Traps Extracted . | . . . . . . . . . . . . . . . . . . . . . . . . . . . . . . . . . . Installed 15 | . . . . . . . . . 4 5 . . . . . . . . . . . 2 . 1 . . 1 . 2 . . . . Triggered 31 | . . . . . . . . 1 4 2 . . . . . . . 1 . . . 4 . 1 . 12 . . 6 . . . . Exploded 1 | . . . . . . . 1 . . . . . . . . . . . . . . . . . . . . . . . . . . Machines | -11 -10 -10 -9 -9 -9 -8 -8 -7 -7 -7 -7 -6 -6 -6 -6 -6 -5 -5 -5 -5 -5 -4 -4 -4 -4 -4 -3 -3 -3 -2 -2 -2 -1 ---------- Run | Scr Mat Min Mat Min Exi Min Mat Fac Low Low Zio Pro Fac Low Low Dat Pro Fac Upp Upp Zhi Pro Fac Upp Upp War Pro Res Qua Res Tes Sec Acc Machines Disabled 88 | . . . 4 1 . . 1 . . . . . 13 . . . . 6 . . . . 31 . . . . . 11 . 8 10 3 Max in Single Turn 7 | . . . 1 . . . 1 . . . . . 7 . . . . 4 . . . . 5 . . . . . 1 . 1 1 1 Garrison Access 6 | . . . . . . . 1 . . . . . . . . . . . . . . . . . . . . . 1 1 . 1 2 Machines Sabotaged . | . . . . . . . . . . . . . . . . . . . . . . . . . . . . . . . . . . Garrisons Compromised . | . . . . . . . . . . . . . . . . . . . . . . . . . . . . . . . . . . Overloaded Fab Kills . | . . . . . . . . . . . . . . . . . . . . . . . . . . . . . . . . . . Fab Network Shutdowns 1 | . . . . . . . . 1 . . . . . . . . . . . . . . . . . . . . . . . . . Hacking | -11 -10 -10 -9 -9 -9 -8 -8 -7 -7 -7 -7 -6 -6 -6 -6 -6 -5 -5 -5 -5 -5 -4 -4 -4 -4 -4 -3 -3 -3 -2 -2 -2 -1 --------- Run | Scr Mat Min Mat Min Exi Min Mat Fac Low Low Zio Pro Fac Low Low Dat Pro Fac Upp Upp Zhi Pro Fac Upp Upp War Pro Res Qua Res Tes Sec Acc Machines Accessed 123 | . 7 . 12 . 1 . 14 12 . 1 1 . 6 1 1 4 . 6 1 1 4 . 7 . . 1 . 1 9 2 14 11 6 Terminals 62 | . 5 . 7 . . . 9 7 . . . . 1 . . . . 2 . . . . 4 . . . . . 4 1 9 10 3 Fabricators 8 | . . . . . . . . 1 . . . . 2 . . . . . . . . . 2 . . . . 1 . . 2 . . Repair Stations 16 | . 1 . 2 . . . 2 2 . . . . 2 . . . . 2 . . . . . . . . . . 2 . 2 . 1 Recycling Units 5 | . 1 . 2 . . . 1 . . . . . . . . . . 1 . . . . . . . . . . . . . . . Scanalyzers 8 | . . . 1 . . . 1 1 . . . . . . . . . 1 . . . . . . . . . . 2 . 1 . 1 Garrison Access 8 | . . . . . . . 1 1 . . . . 1 . . . . . . . . . 1 . . . . . 1 1 . 1 1 Total Hacks 416 | . 22 . 49 . 1 . 41 44 . 4 6 . 20 1 1 25 . 14 5 1 17 . 22 . . 1 . 3 38 6 51 33 11 Successful 255 | . 7 . 37 . 1 . 27 29 . 4 6 . 9 1 1 25 . 11 5 1 17 . 13 . . 1 . 1 21 2 21 12 3 Failed 160 | . 14 . 12 . . . 14 15 . . . . 11 . . . . 3 . . . . 9 . . . . 2 17 4 30 21 8 Catastrophic 21 | . 4 . 1 . . . . 2 . . . . 2 . . . . . . . . . . . . . . . 2 2 2 5 1 Database Lockouts 1 | . 1 . . . . . . . . . . . . . . . . . . . . . . . . . . . . . . . . Manual 137 | . 11 . 16 . . . 17 18 . . . . 3 . . . . 2 . . . . 15 . . 1 . 1 8 1 17 22 5 Terminals 179 | . 17 . 21 . . . 23 21 . . . . 1 . . . . 4 . . . . 11 . . . . . 12 4 29 30 6 Fabricators 41 | . . . . . . . . 7 . . . . 7 . . . . . . . . . 10 . . . . 3 . . 14 . . Repair Stations 55 | . 2 . 5 . . . 8 12 . . . . 10 . . . . 6 . . . . . . . . . . 6 . 5 . 1 Recycling Units 14 | . 3 . 7 . . . 2 . . . . . . . . . . 2 . . . . . . . . . . . . . . . Scanalyzers 43 | . . . 16 . . . 5 1 . . . . . . . . . 2 . . . . . . . . . . 15 . 3 . 1 Garrison Access 22 | . . . . . . . 3 3 . . . . 2 . . . . . . . . . 1 . . . . . 5 2 . 3 3 Terminal Hacks 118 | . 2 . 8 . 1 . 8 12 . 4 6 . . 1 1 25 . 2 5 1 17 . 2 . . 1 . . 3 . 9 9 1 Record 26 | . . . . . 1 . . . . 4 . . . . . 11 . . 5 . 5 . . . . . . . . . . . . Part Schematic 16 | . . . . . . . . 2 . . 6 . . . . 4 . . . . 4 . . . . . . . . . . . . Robot Schematic 7 | . . . . . . . . . . . . . . . . 7 . . . . . . . . . . . . . . . . . Robot Analysis 9 | . 1 . 1 . . . 2 1 . . . . . . . . . . . . 4 . . . . . . . . . . . . Prototype ID Bank 11 | . . . 2 . . . 1 1 . . . . . . . 3 . . . . 4 . . . . . . . . . . . . Open Door 6 | . . . . . . . . . . . . . . 1 1 . . . . 1 . . . . . 1 . . . . . 2 . Level Access Points 2 | . . . . . . . . . . . . . . . . . . . . . . . . . . . . . . . 1 1 . Branch Access Points 5 | . . . 1 . . . 1 1 . . . . . . . . . 1 . . . . 1 . . . . . . . . . . Machine Index 2 | . . . . . . . . 1 . . . . . . . . . . . . . . . . . . . . . . 1 . . Terminal Index 3 | . 1 . 1 . . . . 1 . . . . . . . . . . . . . . . . . . . . . . . . . Garrison Index 1 | . . . . . . . . 1 . . . . . . . . . . . . . . . . . . . . . . . . . Unreport Threat 11 | . . . 2 . . . 3 1 . . . . . . . . . . . . . . . . . . . . 1 . 1 3 . Locate Traps 3 | . . . . . . . 1 1 . . . . . . . . . 1 . . . . . . . . . . . . . . . Reprogram Traps 1 | . . . . . . . . . . . . . . . . . . . . . . . 1 . . . . . . . . . . Recall Extermination 5 | . . . . . . . . 2 . . . . . . . . . . . . . . . . . . . . 1 . 1 1 . Recall Assault 1 | . . . . . . . . . . . . . . . . . . . . . . . . . . . . . . . . 1 . Registered Components 1 | . . . . . . . . . . . . . . . . . . . . . . . . . . . . . . . 1 . . Zone Layout 6 | . . . 1 . . . . . . . . . . . . . . . . . . . . . . . . . 1 . 2 1 1 Protovariant Controls 2 | . . . . . . . . . . . . . . . . . . . . . . . . . . . . . . . 2 . . Fabricator Hacks 14 | . . . . . . . . 3 . . . . 2 . . . . . . . . . 4 . . . . . . . 5 . . Load Schematic 8 | . . . . . . . . 1 . . . . 2 . . . . . . . . . 2 . . . . . . . 3 . . Build 6 | . . . . . . . . 2 . . . . . . . . . . . . . . 2 . . . . . . . 2 . . Repair Station Hacks 36 | . 2 . 4 . . . 8 7 . . . . 7 . . . . 4 . . . . . . . . . . 3 . 1 . . Scan Component 20 | . 1 . 2 . . . 4 4 . . . . 4 . . . . 2 . . . . . . . . . . 2 . 1 . . Repair 16 | . 1 . 2 . . . 4 3 . . . . 3 . . . . 2 . . . . . . . . . . 1 . . . . Recycling Unit Hacks 4 | . . . 2 . . . 1 . . . . . . . . . . 1 . . . . . . . . . . . . . . . Retrieve Components 4 | . . . 2 . . . 1 . . . . . . . . . . 1 . . . . . . . . . . . . . . . Scanalyzer 37 | . . . 16 . . . 5 . . . . . . . . . . 2 . . . . . . . . . . 14 . . . . Insert Component 17 | . . . 7 . . . 2 . . . . . . . . . . 1 . . . . . . . . . . 7 . . . . Analyze 20 | . . . 9 . . . 3 . . . . . . . . . . 1 . . . . . . . . . . 7 . . . . Garrison Access Hacks 2 | . . . . . . . 1 . . . . . . . . . . . . . . . . . . . . . . 1 . . . Seal Access 2 | . . . . . . . 1 . . . . . . . . . . . . . . . . . . . . . . 1 . . . Unauthorized Hacks 44 | . 3 . 7 . . . 4 7 . . . . . . . . . 2 . . . . 7 . . . . 1 1 1 6 3 2 Terminals 23 | . 3 . 4 . . . 2 2 . . . . . . . . . 1 . . . . 2 . . . . . 1 . 4 3 1 Track 2 | . . . 1 . . . . . . . . . . . . . . . . . . . . . . . . . . . . 1 . Assimilate 6 | . 1 . 1 . . . 1 . . . . . . . . . . . . . . . 1 . . . . . . . 2 . . Botnet 12 | . 2 . 1 . . . 1 2 . . . . . . . . . 1 . . . . 1 . . . . . 1 . 1 1 1 Disrupt 3 | . . . 1 . . . . . . . . . . . . . . . . . . . . . . . . . . . 1 1 . Fabricators 10 | . . . . . . . . 3 . . . . . . . . . . . . . . 4 . . . . 1 . . 2 . . Prioritize 4 | . . . . . . . . 1 . . . . . . . . . . . . . . 2 . . . . . . . 1 . . Siphon 4 | . . . . . . . . 1 . . . . . . . . . . . . . . 2 . . . . . . . 1 . . Haulers 2 | . . . . . . . . 1 . . . . . . . . . . . . . . . . . . . 1 . . . . . Repair Stations 2 | . . . 1 . . . . 1 . . . . . . . . . . . . . . . . . . . . . . . . . Mechanics 2 | . . . 1 . . . . 1 . . . . . . . . . . . . . . . . . . . . . . . . . Recycling Units 4 | . . . 2 . . . 1 . . . . . . . . . . 1 . . . . . . . . . . . . . . . Mask 4 | . . . 2 . . . 1 . . . . . . . . . . 1 . . . . . . . . . . . . . . . Scanalyzers . | . . . . . . . . . . . . . . . . . . . . . . . . . . . . . . . . . . Garrison Access 5 | . . . . . . . 1 1 . . . . . . . . . . . . . . 1 . . . . . . 1 . . 1 Reprogram 4 | . . . . . . . 1 1 . . . . . . . . . . . . . . 1 . . . . . . 1 . . . Jam 1 | . . . . . . . . . . . . . . . . . . . . . . . . . . . . . . . . . 1 Data Cores Recovered 3 | . . . . . . . 2 1 . . . . . . . . . . . . . . . . . . . . . . . . . Used 3 | . . . . . . . 2 1 . . . . . . . . . . . . . . . . . . . . . . . . . Hacking Detections 91 | . 7 . 9 . . . 13 10 . . . . 6 . . . . 6 . . . . 5 . . . . 1 7 1 12 8 6 Full Trace Events 13 | . 2 . 1 . . . . 2 . . . . 2 . . . . . . . . . 1 . . . . . 1 1 1 1 1 Feedback Events 3 | . . . . . . . . . . . . . . . . . . . . . . . 1 . . . . . . 1 . . 1 Corruption 1 | . . . . . . . . . . . . . . . . . . . . . . . . . . . . . . . . . 1 Hackware Fried 2 | . . . . . . . . . . . . . . . . . . . . . . . 1 . . . . . . 1 . . . Feedback Blocked . | . . . . . . . . . . . . . . . . . . . . . . . . . . . . . . . . . . Robot Schematics Acquired 7 | . . . . . . . . . . . . . . . . 7 . . . . . . . . . . . . . . . . . Robots Built 2 | . . . . . . . . . . . . . . . . . . . . . . . . . . . . . . . 2 . . Matter 238 | . . . . . . . . . . . . . . . . . . . . . . . . . . . . . . . 238 . . Time 84 | . . . . . . . . . . . . . . . . . . . . . . . . . . . . . . . 84 . . Total Robot Build Rating 12 | . . . . . . . . . . . . . . . . . . . . . . . . . . . . . . . 12 . . Part Schematics Acquired 27 | . . . 7 . . . 2 2 . . 6 . . . . 4 . 1 . . 4 . . . . . . . 1 . . . . Parts Built 9 | . . . . . . . . 4 . . . . . . . . . . . . . . 3 . . . . . . . 2 . . Matter 907 | . . . . . . . . 318 . . . . . . . . . . . . . . 447 . . . . . . . 142 . . Time 564 | . . . . . . . . 159 . . . . . . . . . . . . . . 310 . . . . . . . 95 . . Total Part Build Rating 54 | . . . . . . . . 24 . . . . . . . . . . . . . . 20 . . . . . . . 10 . . Parts Repaired 16 | . 1 . 2 . . . 4 3 . . . . 3 . . . . 2 . . . . . . . . . . 1 . . . . Time 629 | . 26 . 52 . . . 128 125 . . . . 164 . . . . 112 . . . . . . . . . . 22 . . . . Parts Recycled . | . . . . . . . . . . . . . . . . . . . . . . . . . . . . . . . . . . Recycled Matter . | . . . . . . . . . . . . . . . . . . . . . . . . . . . . . . . . . . Retrieved Matter . | . . . . . . . . . . . . . . . . . . . . . . . . . . . . . . . . . . Retrieved Components 21 | . . . 9 . . . 9 . . . . . . . . . . 3 . . . . . . . . . . . . . . . Parts Scanalyzed 11 | . . . 7 . . . 2 . . . . . . . . . . 1 . . . . . . . . . . 1 . . . . Part Schematics Acquired 11 | . . . 7 . . . 2 . . . . . . . . . . 1 . . . . . . . . . . 1 . . . . Parts Damaged 3 | . . . 1 . . . . . . . . . . . . . . 1 . . . . . . . . . . 1 . . . . Bothacking | -11 -10 -10 -9 -9 -9 -8 -8 -7 -7 -7 -7 -6 -6 -6 -6 -6 -5 -5 -5 -5 -5 -4 -4 -4 -4 -4 -3 -3 -3 -2 -2 -2 -1 ------------ Run | Scr Mat Min Mat Min Exi Min Mat Fac Low Low Zio Pro Fac Low Low Dat Pro Fac Upp Upp Zhi Pro Fac Upp Upp War Pro Res Qua Res Tes Sec Acc Used RIF Installer . | . . . . . . . . . . . . . . . . . . . . . . . . . . . . . . . . . . Robots Hacked 1 | . . . . . . . . . . . . . . . . . . . 1 . . . . . . . . . . . . . . Non-combat 1 | . . . . . . . . . . . . . . . . . . . 1 . . . . . . . . . . . . . . Combat . | . . . . . . . . . . . . . . . . . . . . . . . . . . . . . . . . . . Robot Hacks Applied 1 | . . . . . . . . . . . . . . . . . . . 1 . . . . . . . . . . . . . . parse_system 1 | . . . . . . . . . . . . . . . . . . . 1 . . . . . . . . . . . . . . Relay Couplers Released 7 | . . . . . . . . . . . . . . . . . . . . . . . . . . . . . 3 . . 3 1 Machine Destruction 4 | . . . . . . . . . . . . . . . . . . . . . . . . . . . . . . . . 3 1 Programmers 3 | . . . . . . . . . . . . . . . . . . . . . . . . . . . . . 3 . . . . Robots Rewired 6 | . . . . . . . . . . . . . . . . . . . 1 1 . . . . . 3 . . 1 . . . . Allies Hacked 1 | . . . . . . . . . . . . . . . . . . . . . . . . . . . . . . . 1 . . Hacks Repelled . | . . . . . . . . . . . . . . . . . . . . . . . . . . . . . . . . . . Allies | -11 -10 -10 -9 -9 -9 -8 -8 -7 -7 -7 -7 -6 -6 -6 -6 -6 -5 -5 -5 -5 -5 -4 -4 -4 -4 -4 -3 -3 -3 -2 -2 -2 -1 -------- Run | Scr Mat Min Mat Min Exi Min Mat Fac Low Low Zio Pro Fac Low Low Dat Pro Fac Upp Upp Zhi Pro Fac Upp Upp War Pro Res Qua Res Tes Sec Acc Total Allies 31 | . 1 . 1 5 . . 3 2 . 2 . . . . . . 1 . 3 1 . . 2 . . 3 . . 1 1 5 . . Largest Group 4 | . 1 . 1 4 4 2 4 4 1 2 . . . . . . 1 1 3 2 2 2 2 . . 3 . . 1 1 3 . . Highest-Rated Group 186 | . 10 . 10 65 65 26 52 52 21 62 . . . . . . 95 95 90 55 55 55 112 . . 186 . . 35 27 160 . . Highest-Rated Ally 95 | . 10 . 10 31 31 16 16 21 21 31 . . . . . . 95 95 31 28 28 28 56 . . 65 . . 35 27 54 . . Total Orders 66 | . 4 . 4 7 . 3 8 12 . . . . . . . . . . 2 8 2 6 . . . 5 . . 2 . 3 . . STAY 38 | . 3 . 2 5 . 2 4 6 . . . . . . . . . . 1 4 1 4 . . . 3 . . 1 . 2 . . FOLLOW 26 | . 1 . 2 2 . 1 4 6 . . . . . . . . . . 1 4 1 1 . . . 2 . . . . 1 . . AID 1 | . . . . . . . . . . . . . . . . . . . . . . . . . . . . . 1 . . . . DROP 1 | . . . . . . . . . . . . . . . . . . . . . . 1 . . . . . . . . . . . Ally Attacks 208 | . . . . 18 . 7 23 26 1 13 . . . . . . 24 20 . . . . 29 . . 16 . . . . 31 . . Total Damage 5672 | . . . . 176 . 81 268 316 . 228 . . . . . . 754 500 . . . . 1445 . . 893 . . . . 1011 . . Kills 45 | . . . . 3 . 3 2 3 . 1 . . . . . . 5 5 . . . . 13 . . 5 . . . . 5 . . Allies Corrupted . | . . . . . . . . . . . . . . . . . . . . . . . . . . . . . . . . . . Allies Melted . | . . . . . . . . . . . . . . . . . . . . . . . . . . . . . . . . . . Intel | -11 -10 -10 -9 -9 -9 -8 -8 -7 -7 -7 -7 -6 -6 -6 -6 -6 -5 -5 -5 -5 -5 -4 -4 -4 -4 -4 -3 -3 -3 -2 -2 -2 -1 ------- Run | Scr Mat Min Mat Min Exi Min Mat Fac Low Low Zio Pro Fac Low Low Dat Pro Fac Upp Upp Zhi Pro Fac Upp Upp War Pro Res Qua Res Tes Sec Acc Robot Analysis Total 9 | . 1 . 1 . . . 2 1 . . . . . . . . . . . . 4 . . . . . . . . . . . . Derelict Logs Recovered 12 | . . 2 . 1 . . . . . 2 1 . . 1 1 . . . . 1 . 1 . 1 1 . . . . . . . . Drone Launches . | . . . . . . . . . . . . . . . . . . . . . . . . . . . . . . . . . . Drone Recoveries . | . . . . . . . . . . . . . . . . . . . . . . . . . . . . . . . . . . Decoded 0b10 Intel 133 | . . . . . . . . . . . . . . . . . . . . . . . . . . . . 11 8 . 30 45 39 Traps 19 | . . . . . . . . . . . . . . . . . . . . . . . . . . . . 8 4 . 2 3 2 Emergency Access 14 | . . . . . . . . . . . . . . . . . . . . . . . . . . . . 3 3 . . 6 2 Items 77 | . . . . . . . . . . . . . . . . . . . . . . . . . . . . . . . 23 25 29 Machines 13 | . . . . . . . . . . . . . . . . . . . . . . . . . . . . . . . 5 6 2 Garrisons 1 | . . . . . . . . . . . . . . . . . . . . . . . . . . . . . 1 . . . . Patrols 2 | . . . . . . . . . . . . . . . . . . . . . . . . . . . . . . . . 2 . Guards 7 | . . . . . . . . . . . . . . . . . . . . . . . . . . . . . . . . 3 4 Exploration | -11 -10 -10 -9 -9 -9 -8 -8 -7 -7 -7 -7 -6 -6 -6 -6 -6 -5 -5 -5 -5 -5 -4 -4 -4 -4 -4 -3 -3 -3 -2 -2 -2 -1 ------------- Run | Scr Mat Min Mat Min Exi Min Mat Fac Low Low Zio Pro Fac Low Low Dat Pro Fac Upp Upp Zhi Pro Fac Upp Upp War Pro Res Qua Res Tes Sec Acc Turns Passed 44035 | 113 1263 1244 2955 881 274 1123 3141 1822 1134 2012 1542 376 1789 567 543 129 554 1397 1390 1242 297 1036 1276 1036 659 1480 1043 455 3535 930 1989 2693 2115 Spaces Moved 21335 | 61 460 503 1450 512 171 682 1288 857 634 1082 941 176 693 314 324 80 306 542 809 699 165 519 566 572 306 679 506 178 1546 549 989 1237 939 Core 25 | 5 . . . . . . . . . . . . . . . . . . . . . . . . . . . . . . . . 20 Treads 20300 | 56 460 503 1450 512 171 344 703 857 634 1082 941 176 693 314 324 80 306 542 809 699 165 519 566 572 306 679 506 178 1546 549 989 1224 845 Legs . | . . . . . . . . . . . . . . . . . . . . . . . . . . . . . . . . . . Wheels 923 | . . . . . . 338 585 . . . . . . . . . . . . . . . . . . . . . . . . . . Hover . | . . . . . . . . . . . . . . . . . . . . . . . . . . . . . . . . . . Flight . | . . . . . . . . . . . . . . . . . . . . . . . . . . . . . . . . . . Fastest Speed 50 | 50 160 160 160 160 160 120 108 160 160 160 160 160 160 160 160 160 160 160 160 160 160 160 160 160 160 160 163 163 148 148 155 146 50 Average Speed 161 | 150 160 221 160 160 160 141 197 161 160 160 160 160 160 160 160 160 160 160 160 160 160 160 161 160 160 160 163 163 162 148 155 148 149 Slowest Speed 400 | 160 160 260 160 160 160 260 260 166 160 160 160 160 160 160 160 160 160 160 160 160 160 163 163 160 160 163 163 166 261 155 155 155 400 Overloaded Moves . | . . . . . . . . . . . . . . . . . . . . . . . . . . . . . . . . . . Propulsion Burnouts . | . . . . . . . . . . . . . . . . . . . . . . . . . . . . . . . . . . Robots Hopped . | . . . . . . . . . . . . . . . . . . . . . . . . . . . . . . . . . . Cave-ins Triggered . | . . . . . . . . . . . . . . . . . . . . . . . . . . . . . . . . . . Teleports 1 | . . . . . . . . . . . . . . . . . . . . . . . . . . . . . . . . 1 . Spacefolds 12 | . . . . . . . . . . . . . . . . . . . . . . . . . . . . . . . . 4 8 Microwarps 7 | . . . . . . . . . . . . . . . . . . . . . . . . . . . . . . . . . 7 Exploration Rate (%) 60 | 4 79 98 97 98 55 97 75 24 73 91 84 52 19 56 47 68 48 14 95 77 60 65 16 76 41 85 60 7 91 21 89 60 28 Regions Visited 33 Branch Regions 23 Pre-discovered Areas 9 | . . . . . 1 . . . . . 1 . . 1 . 1 . . . 1 3 . . . 1 . . . . . . . . Known Exits Taken 27 | . . . 1 . . . 1 1 1 1 1 1 1 1 1 1 1 1 1 1 1 1 1 1 1 1 1 1 1 1 1 1 . Unknown Exits Taken 6 | 1 1 1 . 1 1 1 . . . . . . . . . . . . . . . . . . . . . . . . . . . Scrap Searched 36 | . . 1 . 1 . 1 . . 2 3 3 1 . 3 2 . 1 . 3 4 . 4 . 3 1 . 3 . . . . . . Spaces Dug 242 | . . . 4 . . . 1 3 4 1 . . 5 . 2 . . 9 14 32 . 9 8 2 24 2 14 12 24 12 12 30 18 Terrain Destroyed 1175 | . . . 17 1 . 6 11 3 4 24 . . 42 . 2 . . 66 45 118 . 9 80 5 47 64 68 16 53 13 12 131 338 Melee 67 | . . . 4 . . . 1 3 4 1 . . 4 . 2 . . 3 1 . . . . . . . . . 7 4 9 10 14 Projectile 194 | . . . . . . . 5 . . . . . 2 . . . . 6 2 4 . 9 19 5 4 31 2 16 46 9 3 22 9 AOE 914 | . . . 13 1 . 6 5 . . 23 . . 36 . . . . 57 42 114 . . 61 . 43 33 66 . . . . 99 315 Terrain Rammed . | . . . . . . . . . . . . . . . . . . . . . . . . . . . . . . . . . . Walls Destroyed . | . . . . . . . . . . . . . . . . . . . . . . . . . . . . . . . . . . Machines Disabled . | . . . . . . . . . . . . . . . . . . . . . . . . . . . . . . . . . . Actions | -11 -10 -10 -9 -9 -9 -8 -8 -7 -7 -7 -7 -6 -6 -6 -6 -6 -5 -5 -5 -5 -5 -4 -4 -4 -4 -4 -3 -3 -3 -2 -2 -2 -1 --------- Run | Scr Mat Min Mat Min Exi Min Mat Fac Low Low Zio Pro Fac Low Low Dat Pro Fac Upp Upp Zhi Pro Fac Upp Upp War Pro Res Qua Res Tes Sec Acc Total 28274 | 79 911 576 1917 561 172 766 1704 1217 731 1272 981 266 1224 366 343 81 347 941 876 780 191 690 821 671 465 965 676 308 2274 620 1311 1803 1368 Wait 3962 | 9 333 21 307 34 1 34 217 183 57 84 12 85 347 27 10 . 12 249 30 38 . 138 167 60 142 186 122 86 375 23 151 298 124 Move 21234 | 60 459 502 1449 511 170 681 1287 856 633 1081 940 175 692 313 323 79 305 541 808 698 164 518 565 571 305 678 505 177 1545 548 988 1227 880 Hop . | . . . . . . . . . . . . . . . . . . . . . . . . . . . . . . . . . . Pick Up 220 | 4 16 11 19 1 1 2 22 13 2 9 8 . 12 7 . . 2 9 2 2 2 3 5 2 1 5 6 4 21 1 16 5 7 Fast Attach 193 | 6 5 . 3 . . . 17 2 1 4 5 . 10 . 2 1 1 13 2 1 9 3 7 6 1 7 2 3 27 4 20 22 9 Attach 117 | . 1 1 9 . . 5 8 5 2 1 . . 9 1 . . 2 5 . 1 . 2 4 . 1 5 3 2 11 3 5 8 23 Detach 68 | . 2 . 2 . . . 4 4 1 2 4 . . . . . . 4 . . 2 . 1 2 1 4 1 1 6 5 6 8 8 Swap 375 | . 2 3 16 4 . 4 14 16 13 16 2 3 22 2 4 . 7 23 15 9 2 3 13 9 6 9 6 4 42 5 17 45 39 Drop 283 | . 7 7 16 2 . 1 31 9 4 8 10 . 9 4 2 1 2 13 4 3 9 3 8 7 1 10 2 7 38 2 34 22 7 Fire 1138 | . 41 30 83 8 . 38 101 64 10 61 . 3 100 12 . . 15 72 12 27 3 18 50 13 7 51 28 23 118 14 12 50 74 Melee 428 | . . . 4 . . . 1 3 4 1 . . 5 . 2 . . 3 3 1 . . . . . 8 . . 41 15 61 117 159 Ram . | . . . . . . . . . . . . . . . . . . . . . . . . . . . . . . . . . . Kick . | . . . . . . . . . . . . . . . . . . . . . . . . . . . . . . . . . . Crush 51 | . 5 1 9 1 . 1 2 5 . . . . 18 . . . . 2 . . . . 1 . . 2 . 1 2 . . 1 . Escape Stasis 38 | . . . . . . . . . . . . . . . . . . . . . . . . . . . . . . . . . 38 Rewire 2 | . . . . . . . . . . . . . . . . . 1 . . . . . . . . . . . . . 1 . . Trap 165 | . 40 . . . . . . 57 4 5 . . . . . . . 7 . . . 2 . 1 . . 1 . 48 . . . . Miscellaneous . | . . . . . . . . . . . . . . . . . . . . . . . . . . . . . . . . . . Route ------- -11/Scrapyard -10/Materials (discovered 2 exits: *Mat / [*Min]) -10/Mines (discovered 2 exits: *Mat x2) -9/Materials (discovered 4 exits: *Mat x3 / *Min) -9/Mines (discovered 4 exits: *Mat x2 / *Exi / *Zio) -9/Exiles -8/Mines (discovered 2 exits: *Mat x2) -8/Materials (discovered 2 exits: *Fac x2) -7/Factory (discovered 5 exits: *Fac / Sto x2 / *Low x2) -7/Lower Caves -7/Lower Caves -7/Zion -6/Proximity Caves -6/Factory -6/Lower Caves -6/Lower Caves (discovered 2 exits: Fac / *Dat) -6/Data Miner -5/Proximity Caves -5/Factory (discovered 4 exits: *Upp x2 / Ext x2) -5/Upper Caves -5/Upper Caves (discovered 2 exits: Fac / *Zhi) -5/Zhirov -4/Proximity Caves -4/Factory (discovered 3 exits: Res / *Upp x2) -4/Upper Caves -4/Upper Caves -4/Warlord -3/Proximity Caves -3/Research (discovered 2 exits: Arm / *Qua) -3/Quarantine -2/Research -2/Testing (discovered 2 exits: *Acc / *Sec) -2/Section 7 -1/Access (discovered 1 exit: *Sur) History --------- Turn | Location | Event 21 | -11/Scrapyard | Discovered new exit (range 14) 114 | -11/Scrapyard | Entered Materials 307 | -10/Materials | Build established: Mutant 781 | -10/Materials | Discovered new exit (range 4) 1167 | -10/Materials | Repaired Lgt. Treads 1271 | -10/Materials | Central database locked down 1276 | -10/Materials | Discovered new exit (range 8) 1377 | -10/Materials | Entered Mines 1435 | -10/Mines | Joined a pair of Derelicts in attacking an 0b10 outpost 1503 | -10/Mines | Discovered new exit (range 11) 1706 | -10/Mines | Found a hidden stash of uninstalled traps 1884 | -10/Mines | Discovered new exit (range 5) 1987 | -10/Mines | Learned Materials stockpile data 2002 | -10/Mines | Found a damaged Exp. Sensor Array with a note attached 2007 | -10/Mines | Found Prototype Device 2621 | -10/Mines | Entered Materials 2621 | -9/Materials | Evolved 2 slots: Propulsion x1, Utility x1 2992 | -9/Materials | Discovered new exit (range 15) 3206 | -9/Materials | Discovered new exit (range 7) 3650 | -9/Materials | Identified exit to Mines 3656 | -9/Materials | Identified Exp. Sensor Array 3803 | -9/Materials | Discovered new exit (range 16) 4345 | -9/Materials | Discovered new exit (range 16) 5082 | -9/Materials | Repaired Lgt. Treads? 5101 | -9/Materials | Repaired Lgt. Treads? 5576 | -9/Materials | Entered Mines 5576 | -9/Mines | Accompanied by 1 ally 5578 | -9/Mines | Met a Derelict bent on vengeance 5581 | -9/Mines | Assisted by bots powering up and referring to "LRC-V3" 5735 | -9/Mines | A weapon hastily lodged in a ceiling crevice suddenly fell to the ground 5745 | -9/Mines | Discovered new exit (range 15) 5753 | -9/Mines | Deemed a non-threat by the Exiles lab entrance 5753 | -9/Mines | Discovered new exit (range 5) 5983 | -9/Mines | A Derelict revealed a hidden shortcut to a safe place 6036 | -9/Mines | Discovered new exit (range 3) 6152 | -9/Mines | Learned 8 Materials zone layouts 6457 | -9/Mines | Entered Exiles 6457 | -9/Exiles | Accompanied by 4 allies 6487 | -9/Exiles | Led the pair of lost Derelicts to a safe place 6497 | -9/Exiles | Met 8R-AWN 6545 | -9/Exiles | Met EX-HEX 6623 | -9/Exiles | Met EX-DEC 6652 | -9/Exiles | Learned location of Zion (-7) 6710 | -9/Exiles | Discovered new exit (range 14) 6731 | -9/Exiles | Entered Mines 6731 | -8/Mines | Accompanied by 2 allies 7036 | -8/Mines | Discovered new exit (range 15) 7399 | -8/Mines | Lost 3 parts (2n1w) 7406 | -8/Mines | Discovered new exit (range 7) 7854 | -8/Mines | Entered Materials 7854 | -8/Materials | Accompanied by 1 ally 7854 | -8/Materials | Evolved 2 slots: Utility x1, Weapon x1 7855 | -8/Materials | Identified exit to Factory 8531 | -8/Materials | Build established: Trapper-Tank 9508 | -8/Materials | Discovered exit to Factory (range 12) 9590 | -8/Materials | Repaired Lgt. Treads 9618 | -8/Materials | Repaired Lgt. Treads 9657 | -8/Materials | Repaired Hrd. Medium Armor Plating 9751 | -8/Materials | Garrison activated, responded to threat 9925 | -8/Materials | Build established: Scavenger-Tank 9940 | -8/Materials | Repaired Hrd. Medium Armor Plating 10995 | -8/Materials | Entered Factory 10995 | -7/Factory | Accompanied by 4 allies 10995 | -7/Factory | Evolved 2 slots: Propulsion x1, Utility x1 10996 | -7/Factory | Identified exit to Storage 11425 | -7/Factory | Identified exit to Lower Caves 11735 | -7/Factory | Fabricated Hvy. Treads? 11817 | -7/Factory | Fabricated Hvy. Treads? 11907 | -7/Factory | Local fabrication network quarantined 11948 | -7/Factory | Build established: Hacker-Tank 12096 | -7/Factory | Discovered new exit (range 16) 12344 | -7/Factory | Repaired Enh. Autogun 12373 | -7/Factory | Repaired Hrd. Medium Armor Plating 12745 | -7/Factory | Repaired Broken Enh. Autogun 12817 | -7/Factory | Entered Lower Caves 12817 | -7/Lower Caves | Accompanied by 1 ally 12841 | -7/Lower Caves | Found Alien Artifact 12841 | -7/Lower Caves | Identified Core Expander 12841 | -7/Lower Caves | Installed Core Expander, added new Utility slot 12886 | -7/Lower Caves | Acquired the password to a Derelict Tinkerer's latest research 13104 | -7/Lower Caves | Build established: Tank 13221 | -7/Lower Caves | Spotted B-75 Beast 13320 | -7/Lower Caves | Destroyed B-75 Beast 13430 | -7/Lower Caves | Encountered a Warlord checkpoint 13520 | -7/Lower Caves | Discovered new exit (range 7) 13948 | -7/Lower Caves | Identified exit to Lower Caves 13951 | -7/Lower Caves | Entered another Lower Caves area 14012 | -7/Lower Caves | Spotted B-75 Beast 14063 | -7/Lower Caves | Destroyed B-75 Beast 14100 | -7/Lower Caves | Destroyed 12 combat bots 14460 | -7/Lower Caves | Build established: Mutant 14639 | -7/Lower Caves | A Commander dispatched an escort 14645 | -7/Lower Caves | Learned Armory security intel 14808 | -7/Lower Caves | Build established: Tank 14984 | -7/Lower Caves | Found Imp. Powered Armor 15151 | -7/Lower Caves | Build established: Mutant 15252 | -7/Lower Caves | Learned Factory security intel 15608 | -7/Lower Caves | Encountered a Warlord checkpoint 15750 | -7/Lower Caves | Build established: Skirmisher 15865 | -7/Lower Caves | Learned Factory terminal intel 15890 | -7/Lower Caves | Attracted the attention of an 0b10 checkpoint 15910 | -7/Lower Caves | Discovered new exit (range 15) 15961 | -7/Lower Caves | Identified exit to Zion 15963 | -7/Lower Caves | Entered Zion 16080 | -7/Zion | Discovered new exit (range 8) 16921 | -7/Zion | Learned location of Warlord (-4) 17091 | -7/Zion | Found Prototype Processor 17091 | -7/Zion | Identified Exp. Terrain Scan Processor 17096 | -7/Zion | Found Prototype Processor 17096 | -7/Zion | Identified Exp. Target Analyzer 17100 | -7/Zion | Found Prototype Processor 17100 | -7/Zion | Identified Spectral Analyzer 17221 | -7/Zion | Found Exp. Terrain Scan Processor 17393 | -7/Zion | Build established: Tank 17503 | -7/Zion | Identified exit to Proximity Caves 17505 | -7/Zion | Entered Proximity Caves 17867 | -6/Proximity Caves | Discovered new exit (range 7) 17876 | -6/Proximity Caves | Identified exit to Factory 17881 | -6/Proximity Caves | Entered Factory 17881 | -6/Factory | Evolved 2 slots: Propulsion x1, Utility x1 17882 | -6/Factory | Identified exit to Lower Caves 17884 | -6/Factory | Loaded intel: 19 terminal locations 18029 | -6/Factory | Build established: Skirmisher 18213 | -6/Factory | Repaired Hvy. Treads 18294 | -6/Factory | Repaired Broken Hvy. Treads 18688 | -6/Factory | Repaired Enh. Autogun 18883 | -6/Factory | Spotted B-75 Beast 18910 | -6/Factory | Destroyed B-75 Beast 19119 | -6/Factory | Destroyed 7 combat bots 19412 | -6/Factory | Garrison activated, responded to threat 19556 | -6/Factory | Lost 5 parts (1n4u) 19670 | -6/Factory | Entered Lower Caves 19886 | -6/Lower Caves | Build established: Tank 20094 | -6/Lower Caves | Discovered new exit (range 14) 20235 | -6/Lower Caves | Identified exit to Lower Caves 20237 | -6/Lower Caves | Entered another Lower Caves area 20428 | -6/Lower Caves | Identified exit to Factory 20552 | -6/Lower Caves | Discovered new exit (range 10) 20776 | -6/Lower Caves | Identified exit to Data Miner 20780 | -6/Lower Caves | Entered Data Miner 20780 | -6/Data Miner | Discovered new exit (range 6) 20787 | -6/Data Miner | Identified exit to Proximity Caves 20811 | -6/Data Miner | Met Data Miner 20842 | -6/Data Miner | Learned location of Section 7 (-2) 20842 | -6/Data Miner | Acquired the access code to Warlord's prototype stash 20869 | -6/Data Miner | Received God Mode back door access code from Data Miner 20909 | -6/Data Miner | Entered Proximity Caves 21040 | -5/Proximity Caves | Escorted by Enhanced Grunt 21221 | -5/Proximity Caves | Attracted the attention of an 0b10 checkpoint 21265 | -5/Proximity Caves | Spotted B-75 Beast 21291 | -5/Proximity Caves | Allies destroyed B-75 Beast 21410 | -5/Proximity Caves | Discovered exit to Factory (range 6) 21463 | -5/Proximity Caves | Entered Factory 21463 | -5/Factory | Accompanied by 1 ally 21463 | -5/Factory | Evolved 2 slots: Power x1, Utility x1 21805 | -5/Factory | Repaired Hvy. Treads 21843 | -5/Factory | Build established: Hacker-Skirmisher 21861 | -5/Factory | Repaired Hvy. Treads 22377 | -5/Factory | Destroyed 8 combat bots 22388 | -5/Factory | Identified exit to Upper Caves 22388 | -5/Factory | Identified exit to Extension 22663 | -5/Factory | First assault squad dispatched 22860 | -5/Factory | Entered Upper Caves 23366 | -5/Upper Caves | Discovered new exit (range 18) 23385 | -5/Upper Caves | A Commander dispatched an escort 23390 | -5/Upper Caves | Learned 8 Factory zone layouts 23390 | -5/Upper Caves | Learned Research terminal intel 23390 | -5/Upper Caves | Learned Armory garrison access intel 23504 | -5/Upper Caves | Encountered a Warlord checkpoint 23540 | -5/Upper Caves | Build established: Skirmisher 24245 | -5/Upper Caves | Identified exit to Upper Caves 24250 | -5/Upper Caves | Entered another Upper Caves area 24250 | -5/Upper Caves | Accompanied by 3 allies 24251 | -5/Upper Caves | Commander's escort returned to base 24251 | -5/Upper Caves | Commander's escort returned to base 24297 | -5/Upper Caves | Discovered new exit (range 18) 24361 | -5/Upper Caves | Encountered a Warlord checkpoint 24474 | -5/Upper Caves | Destroyed 9 combat bots 24753 | -5/Upper Caves | Discovered new exit (range 11) 24769 | -5/Upper Caves | Identified exit to Zhirov 25433 | -5/Upper Caves | Build established: Mutant 25492 | -5/Upper Caves | Entered Zhirov 25492 | -5/Zhirov | Accompanied by 2 allies 25492 | -5/Zhirov | Discovered new exit (range 3) 25521 | -5/Zhirov | Met Zhirov 25556 | -5/Zhirov | Learned location of Quarantine (-3) 25556 | -5/Zhirov | Learned location of Testing (-2) 25556 | -5/Zhirov | Learned location of Command (-1) 25566 | -5/Zhirov | Zhirov requested help retrieving the SGEMP Prototype 25592 | -5/Zhirov | Found Alien Artifact 25592 | -5/Zhirov | Identified Integrated Dissipator 25592 | -5/Zhirov | Installed Integrated Dissipator, increased core heat dissipation (+20) 25703 | -5/Zhirov | Found Alien Artifact 25787 | -5/Zhirov | Identified exit to Proximity Caves 25789 | -5/Zhirov | Entered Proximity Caves 25789 | -4/Proximity Caves | Accompanied by 2 allies 25926 | -4/Proximity Caves | Build established: Scavenger-Skirmisher 26110 | -4/Proximity Caves | Attracted the attention of an 0b10 checkpoint 26285 | -4/Proximity Caves | Received a Behemoth hack from an annoying Tinkerer 26592 | -4/Proximity Caves | Learned location of 1 exit from Research 26693 | -4/Proximity Caves | Discovered new exit (range 19) 26802 | -4/Proximity Caves | Identified exit to Factory 26825 | -4/Proximity Caves | Entered Factory 26825 | -4/Factory | Evolved 2 slots: Propulsion x1, Utility x1 26826 | -4/Factory | Identified exit to Research 27060 | -4/Factory | Fabricated Exp. Sensor Array (x1) 27428 | -4/Factory | Adv. Hacking Suite fried by hacking feedback 27516 | -4/Factory | Fabricated Hvy. Treads (x2) 27648 | -4/Factory | Identified exit to Upper Caves 27859 | -4/Factory | First assault squad dispatched 27881 | -4/Factory | Incoming assault squad redirected 28101 | -4/Factory | Entered Upper Caves 28809 | -4/Upper Caves | Discovered new exit (range 22) 28827 | -4/Upper Caves | Learned 8 Research zone layouts 28987 | -4/Upper Caves | Identified exit to Upper Caves 29137 | -4/Upper Caves | Entered another Upper Caves area 29531 | -4/Upper Caves | Discovered new exit (range 22) 29794 | -4/Upper Caves | Identified exit to Warlord 29796 | -4/Upper Caves | Build established: Scavenger-Mutant 29796 | -4/Upper Caves | Entered Warlord 29837 | -4/Warlord | Discovered new exit (range 23) 30328 | -4/Warlord | Build established: Derelict-Mutant 30358 | -4/Warlord | Met Warlord 30373 | -4/Warlord | Opened Warlord's prototype stash 30378 | -4/Warlord | Found Prototype Device 30378 | -4/Warlord | Identified System Purifier 30383 | -4/Warlord | Warlord's base attacked by MAIN.C 30387 | -4/Warlord | Found Prototype Device 30387 | -4/Warlord | Identified Exp. Phase Shifter 30394 | -4/Warlord | Found Prototype Reactor 30405 | -4/Warlord | Found Prototype Hackware 30409 | -4/Warlord | Found Exp. Target Analyzer 30523 | -4/Warlord | Found Prototype Energy Cannon 30523 | -4/Warlord | Identified Vortex Driver 30526 | -4/Warlord | Found Vortex Driver 30675 | -4/Warlord | Destroyed 9 combat bots 30733 | -4/Warlord | Warlord forces counterattacked 30767 | -4/Warlord | Spotted Executioner 30772 | -4/Warlord | Destroyed Executioner 30817 | -4/Warlord | Spotted B-90 Cyclops 30822 | -4/Warlord | Spotted Striker 30826 | -4/Warlord | Spotted B-86 Titan 30827 | -4/Warlord | Spotted Striker 30844 | -4/Warlord | Destroyed Striker 30844 | -4/Warlord | Destroyed B-86 Titan 30883 | -4/Warlord | Spotted Striker 31058 | -4/Warlord | Warlord base infiltrated, sounded retreat 31103 | -4/Warlord | Spotted Striker 31109 | -4/Warlord | Destroyed Striker 31184 | -4/Warlord | Spotted Executioner 31184 | -4/Warlord | Spotted B-86 Titan 31184 | -4/Warlord | Spotted B-90 Cyclops 31184 | -4/Warlord | Spotted B-90 Cyclops 31190 | -4/Warlord | Destroyed Executioner 31232 | -4/Warlord | Lost 5 parts (1p3u1w) 31236 | -4/Warlord | Identified exit to Proximity Caves 31276 | -4/Warlord | Entered Proximity Caves 31698 | -3/Proximity Caves | Build established: Scavenger-Mutant 32229 | -3/Proximity Caves | Discovered exit to Research (range 24) 32319 | -3/Proximity Caves | Entered Research 32319 | -3/Research | Evolved 2 slots: Utility x2 32320 | -3/Research | Identified exit to Armory 32321 | -3/Research | Identified exit to Quarantine 32322 | -3/Research | Loaded intel: 17 terminal locations 32323 | -3/Research | Identified Ghost Barrier 32439 | -3/Research | Build established: Scavenger-Skirmisher 32760 | -3/Research | Spotted B-86 Titan 32774 | -3/Research | Entered Quarantine 32817 | -3/Quarantine | Found Fusion Bomb Launcher 32972 | -3/Quarantine | Found Prototype Hackware 32976 | -3/Quarantine | Identified Exp. Hacking Suite 32976 | -3/Quarantine | Identified Transdimensional Reconstructor 33215 | -3/Quarantine | Identified Vortex Chain Reactor 33274 | -3/Quarantine | Spotted Alpha 7 33441 | -3/Quarantine | Found Alien Impact Weapon 33486 | -3/Quarantine | Repaired Nova Cannon 33684 | -3/Quarantine | Build established: Hacker-Mutant 33953 | -3/Quarantine | Cryocooling Duct disabled 33968 | -3/Quarantine | Ambient heat levels rising (+20) 33968 | -3/Quarantine | Non-combat units ordered to evacuate 34002 | -3/Quarantine | Incoming assault squad redirected 34005 | -3/Quarantine | Incoming investigation squad redirected 34070 | -3/Quarantine | Destroyed 7 combat bots 34151 | -3/Quarantine | Discovered new exit (range 10) 34315 | -3/Quarantine | Identified exit to Research 34436 | -3/Quarantine | Found Alien Artifact 34436 | -3/Quarantine | Identified Phase Redirector 34848 | -3/Quarantine | Cryocooling Duct disabled 34863 | -3/Quarantine | Ambient heat levels rising (+20) 34863 | -3/Quarantine | Combat units ordered to evacuate 34899 | -3/Quarantine | Found Alien Slashing Weapon 34899 | -3/Quarantine | Identified Sigix Broadsword 34930 | -3/Quarantine | Found Alien Artifact 34963 | -3/Quarantine | Quarantine Guard activated 35004 | -3/Quarantine | Identified Core Reset Matrix 35254 | -3/Quarantine | Found Alien Artifact 35264 | -3/Quarantine | Found Alien Artifact 35286 | -3/Quarantine | Spotted Quarantine Guard 35329 | -3/Quarantine | Destroyed Quarantine Guard 35366 | -3/Quarantine | Destroyed Alpha 7 35414 | -3/Quarantine | Identified Hpw. Transdimensional Reconstructor 35414 | -3/Quarantine | Identified Dimensional Node Initializer 35414 | -3/Quarantine | Identified Core Stripper 35436 | -3/Quarantine | Spotted Quarantine Guard 35453 | -3/Quarantine | Destroyed Quarantine Guard 35503 | -3/Quarantine | Spotted Quarantine Guard 35520 | -3/Quarantine | Destroyed Quarantine Guard 35558 | -3/Quarantine | Spotted Quarantine Guard 35559 | -3/Quarantine | Destroyed Quarantine Guard 35686 | -3/Quarantine | Spotted Quarantine Guard 35717 | -3/Quarantine | Destroyed Quarantine Guard 35763 | -3/Quarantine | Spotted Quarantine Guard 35804 | -3/Quarantine | Destroyed Quarantine Guard 35884 | -3/Quarantine | Spotted Quarantine Guard 35905 | -3/Quarantine | Destroyed Quarantine Guard 35918 | -3/Quarantine | Spotted Quarantine Guard 35933 | -3/Quarantine | Destroyed Quarantine Guard 36309 | -3/Quarantine | Entered Research 36309 | -2/Research | Warlord forces began assault on 0b10 36309 | -2/Research | Evolved 2 slots: Power x1, Utility x1 36386 | -2/Research | Exp. Hacking Suite fried by hacking feedback 36395 | -2/Research | Met up with Warlord 36419 | -2/Research | Research machine network offline 36606 | -2/Research | Borebot progress halted 36616 | -2/Research | Found Prototype Processor 36619 | -2/Research | Identified Exp. Melee Analysis Suite 36700 | -2/Research | Build established: Scavenger-Gladiator 36727 | -2/Research | Borebot progress halted 37079 | -2/Research | Borebot progress halted 37113 | -2/Research | Discovered new exit (range 9) 37123 | -2/Research | Identified exit to Testing 37199 | -2/Research | Found Prototype Processor 37199 | -2/Research | Identified Exp. Core Analyzer 37239 | -2/Research | Entered Testing 37403 | -2/Testing | Fabricated 0b10 Decoder Chip [Generic]? 37409 | -2/Testing | Found Prototype Device 37413 | -2/Testing | Identified Exp. Hardlight Generator 37575 | -2/Testing | Spotted Striker 37607 | -2/Testing | Found Prototype Energy Cannon 37607 | -2/Testing | Identified Cld. Nova Cannon 37648 | -2/Testing | Build established: Hacker-Gladiator 37665 | -2/Testing | Spotted Striker 37818 | -2/Testing | Found Prototype Device 37818 | -2/Testing | Identified AEGIS Remote Shield 37924 | -2/Testing | Found Prototype Device 37953 | -2/Testing | Identified Exp. Shock Absorption System 37997 | -2/Testing | Found Exp. Melee Analysis Suite 38031 | -2/Testing | Protovariant out of control (PL-7ZUGMX0IP0) 38031 | -2/Testing | Unleashed a protovariant (PL-7ZUGMX0IP0) 38031 | -2/Testing | Identified exit to Access 38097 | -2/Testing | Incoming assault squad redirected 38262 | -2/Testing | Fabricated P-70 Sage? 38270 | -2/Testing | Sage 9a assimilated hostile H-88 Terminator 38933 | -2/Testing | Spotted Investigator 38934 | -2/Testing | Scanned by Researcher 38938 | -2/Testing | Destroyed Investigator 38989 | -2/Testing | Spotted Fortress 38998 | -2/Testing | Destroyed Fortress 39044 | -2/Testing | Found Prototype Device 39044 | -2/Testing | Identified Thermal Barrier 39058 | -2/Testing | Found Prototype Device 39058 | -2/Testing | Identified EM Dispersion Field 39066 | -2/Testing | Found Prototype Protection 39066 | -2/Testing | Identified Centrium Heavy Armor Plating 39100 | -2/Testing | Found Prototype Launcher 39100 | -2/Testing | Identified Containment Facilitator 39123 | -2/Testing | Found Prototype Device 39123 | -2/Testing | Identified Exp. Force Field 39222 | -2/Testing | Discovered new exit (range 5) 39227 | -2/Testing | Identified exit to Section 7 39228 | -2/Testing | Entered Section 7 39241 | -2/Section 7 | Found Alien Artifact 39241 | -2/Section 7 | Identified Spacefold Activator 39342 | -2/Section 7 | Spotted S7 Guard 39394 | -2/Section 7 | Destroyed S7 Guard 39421 | -2/Section 7 | Found Prototype Protection 39421 | -2/Section 7 | Identified Hvy. Regenerative Plating 39434 | -2/Section 7 | Found Alien Artifact 39434 | -2/Section 7 | Identified Integrated Singularity Reactor 39434 | -2/Section 7 | Installed Integrated Singularity Reactor, increased core energy generation (+20) 39538 | -2/Section 7 | Build established: Generator-Gladiator 39582 | -2/Section 7 | Incoming assault squad redirected 39719 | -2/Section 7 | Found Integrated Dissipator 39719 | -2/Section 7 | Installed Integrated Dissipator, increased core heat dissipation (+20) 39797 | -2/Section 7 | Found Alien Artifact 39797 | -2/Section 7 | Identified Integrated Mediator 39797 | -2/Section 7 | Installed Integrated Mediator, increased core attachment efficiency. 39874 | -2/Section 7 | Spotted S7 Guard 39883 | -2/Section 7 | Destroyed S7 Guard 39911 | -2/Section 7 | Found Alien Artifact 39911 | -2/Section 7 | Identified Core Membrane 39911 | -2/Section 7 | Installed Core Membrane, gained immunity to corruption 40024 | -2/Section 7 | Found Prototype Launcher 40024 | -2/Section 7 | Identified Adv. Micro-nuke Launcher 40229 | -2/Section 7 | Found Alien Artifact 40229 | -2/Section 7 | Identified Microwarp Drive 40477 | -2/Section 7 | Spotted S7 Guard 40484 | -2/Section 7 | Destroyed 7 combat bots 40527 | -2/Section 7 | Destroyed S7 Guard 40611 | -2/Section 7 | Found Alien Artifact 40611 | -2/Section 7 | Identified Integrated Heat Negator 40611 | -2/Section 7 | Installed Integrated Heat Negator, increased core heat dissipation (+40) 40616 | -2/Section 7 | Initialized slip node 40728 | -2/Section 7 | First assault squad dispatched 40750 | -2/Section 7 | Incoming assault squad redirected 41472 | -2/Section 7 | Found Integrated Dissipator 41472 | -2/Section 7 | Installed Integrated Dissipator, increased core heat dissipation (+20) 41504 | -2/Section 7 | Incoming assault squad redirected 41572 | -2/Section 7 | Found Alien Artifact 41572 | -2/Section 7 | Identified LRC Insulator 41572 | -2/Section 7 | Installed LRC Insulator, gained EM resistance (25) 41887 | -2/Section 7 | Warped through subspace to slip node 41921 | -2/Section 7 | Entered Access 41921 | -1/Access | Evolved 2 slots: Utility x2 42394 | -1/Access | Spotted B-99 Colossus 42639 | -1/Access | Found Enh. Force Lance 42671 | -1/Access | First assault squad dispatched 42700 | -1/Access | Incoming assault squad redirected 42938 | -1/Access | Destroyed 7 combat bots 43505 | -1/Access | Destroyed 8 combat bots 43505 | -1/Access | High security lockdown imminent 43554 | -1/Access | Lost 3 parts (2p1u) 43576 | -1/Access | Found Prototype Processor 43576 | -1/Access | Identified Spectral Analyzer 43585 | -1/Access | High security lockdown engaged 43700 | -1/Access | Spotted B-99 Colossus 43702 | -1/Access | Discovered new exit (range 5) 43707 | -1/Access | Identified exit to Surface 43745 | -1/Access | Destroyed 13 combat bots 43755 | -1/Access | Destroyed B-99 Colossus 43772 | -1/Access | Spotted Striker 43778 | -1/Access | Lost 7 parts (1p3n2u1w) 43796 | -1/Access | Destroyed Striker 43827 | -1/Access | Destroyed 13 combat bots 43891 | -1/Access | Lost 3 parts (1p2u) 43915 | -1/Access | Spotted Executioner 43915 | -1/Access | Spotted Investigator 43921 | -1/Access | Spotted Striker 43936 | -1/Access | Destroyed Executioner 43944 | -1/Access | Destroyed Striker 43960 | -1/Access | Spotted Investigator 43963 | -1/Access | Spotted B-99 Colossus 43976 | -1/Access | Core integrity fell below 50% 43978 | -1/Access | Destroyed 19 combat bots 44009 | -1/Access | Lost 12 parts (3n8u1w) 44029 | -1/Access | Core integrity fell below 20% 44036 | -1/Access | Destroyed by B-99 Colossus with Linear Accelerator Last Messages --------------- 44010_ Stasis bubble strength at 38. 44011_ Stasis bubble strength at 32. 44012_ Stasis bubble strength at 26. 44013_ Stasis bubble strength at 20. 44014_ Stasis bubble strength at 14. 44015_ Stasis bubble strength at 8. 44016_ Stasis bubble strength at 2. 44017_ Stasis bubble bursts. 44018_ AEGIS Remote Shield destroyed. 44025_ Slug penetrates H-88 Terminator. 44026_ Slug penetrates Wall. 44028_ Spacefolded through Wall. 44029_ Adv. Armor Integrity Analyzer destroyed. 44029_ 0b10 Decoder Chip [Generic] destroyed. 44029_ Penetrated by Slug. 44030_ Spacefolded through L-61 Swordsman. 44031_ Spacefolded through Wall. 44033_ Spacefolded through Recycling Unit. 44034_ Spacefolded through Wall. 44034_ U-05 Engineer lays Concrete. Map ----- +----------------------------------------------------+ | ??????????????????# # # "" #???????????? | | ??????????????????# + + #???????????? | | ??????????????????# # # #???????????? | | ??????????????????######## ####+######??????????? | | ???????????????????####### # #??????????? | | ???????????????? # #??????????? | | ???????????????? / " #??????????? | | ????????????????!???###### # """ #??????????? | | ??????=??????????????????# #* """ #??????????? | | ?????????????????????????# # " * #??????????? | | ?????????######??????????# # #??????????? | | ?????????# ############ # #??????????? | | ?????????# "" ###########??????????? | | ?????????# T" #????????????????????? | | ?????????# ###/############???????????????????? | | ?????????## ## #???????????????????? | | ??????????# ## #???????????????????? | | ??????????# ## ""Y"" #???????????????????? | | ??????????# ## != """"" #???????????????????? | | ??????????# ## != #???????????????????? | | ??????????# ## ! #???????????????????? | | ??????????# #################???????????????????? | | ??????????# #?????##???#????????????????????????? | | ??????????# ####### ##########????????###???????? | | ??????????# """T""" !]] "??????? #???????? | | ????????## """ " /!!@ k "?????? #???????? | | ????????# %]!] k "?????? #####???? | | ????????# !!/ ""???? ???? | | ????????# u BB !"" ""?? ??? | | ????????# BB < %=""! ??? | | ???????? %[%w"!% ??? | | ???????## # u !!|%=*%% #???????? | | ???????? ## u % !]]%!= #???????? | | ????????# u %!/=%* #???????? | | ????????? %####### #####################???????? | | ??????????% = # #??????????????????????????? | | ####+####?* ## # ???????????????????????????? | | | % # # ## ????????????????????????????? | | % # # ????????????????????????????? | | ???""""" # #?? ?????????????######??????????? | | ???""""" # ##################### #??????????? | | ???""""" # #??????????? | | ????"""" ?# #??????????? | | ????"""" ?######+################# #??????????? | | ????""""?????? ????############ ############# | | ???? ???? ??# # # | | ???? ???# # # # ] | | ????"""???# # + + """"" | | ????""????# # # # """""""" | | ????????+?# # # # """""""" | +----------------------------------------------------+ Best States ------------- Heat Dissipation 152 Energy Generation 99 Energy Capacity 1450 Matter Stores 539 Matter Capacity 700 Sight Range 16 Robot Scan Range 20 Terrain Scan Range 24 Terrain Scan Density 1010 Jamming Range 16 Armor Coverage 1400 Resistance: KI 20 Resistance: TH 50 Resistance: EX 75 Resistance: EM 100 Weapon Shielding 90 Melee Speed Boost 20 Phase Shifting 20 Evasion (%) 60 Melee Accuracy 24 Target Analysis 12 Core Analysis 15 Armor Integrity Analysis 45 Recoil Reduction 6 Matter Filtering 30 Energy Filtering 50 Particle Charging 25 Offensive Hacking 28 Defensive Hacking 20 Item Schematics ----------------- Exp. Sensor Array | -9/Materials | Scanalyzed Huge Storage Unit | -9/Materials | Scanalyzed Hcp. Storage Unit | -9/Materials | Scanalyzed Adv. Beam Cannon | -9/Materials | Scanalyzed Hacking Suite | -9/Materials | Scanalyzed Structural Scanner | -9/Materials | Scanalyzed Datajack | -9/Materials | Scanalyzed Arm. Treads | -8/Materials | Scanalyzed Imp. Signal Interpreter | -8/Materials | Scanalyzed Adv. Signal Interpreter | -7/Factory | Hacked Hvy. Treads | -7/Factory | Hacked Beamcaster | -7/Zion | Free Riot Gun | -7/Zion | Free Battle Cannon | -7/Zion | Free Bore Cannon | -7/Zion | Free Flamer | -7/Zion | Free Enh. Flamer | -7/Zion | Free Combat Drone Bay | -6/Data Miner | Free Lgt. Regenerative Plating | -6/Data Miner | Free Cmb. Gravmag System | -6/Data Miner | Free Exp. ECM Suite | -6/Data Miner | Free 0b10 Decoder Chip [Generic] | -5/Factory | Scanalyzed Assault Drone Bay | -5/Zhirov | Free Exp. Heat Sink | -5/Zhirov | Free Exp. Optical Array | -5/Zhirov | Free Imp. Arc Thrower | -5/Zhirov | Free System Purifier | -3/Quarantine | Scanalyzed Robot Schematics ------------------ S-27 Virus | -6/Data Miner | Free G-50 Soldier | -6/Data Miner | Free X-72 Disruptor | -6/Data Miner | Free H-66 Slayer | -6/Data Miner | Free P-70 Sage | -6/Data Miner | Free I-36 Angel | -6/Data Miner | Free I-47 Archangel | -6/Data Miner | Free Fabricated ------------ Hvy. Treads | x2 | -7/Factory Hvy. Treads | x2 | -7/Factory Exp. Sensor Array | x1 | -4/Factory Hvy. Treads | x2 | -4/Factory 0b10 Decoder Chip [Generic] | x2 | -2/Testing P-70 Sage | x2 | -2/Testing Alien Tech Used ----------------- Core Expander Integrated Dissipator Phase Redirector Sigix Broadsword Core Stripper Spacefold Activator Integrated Singularity Reactor Integrated Mediator Core Membrane Microwarp Drive Integrated Heat Negator Dimensional Node Initializer LRC Insulator Transdimensional Reconstructor Achievements -------------- None Challenges ------------ None Game ------ Seed SpectralPlasmaFirepult Manual? 0 Play Time 05:00:03 Cumulative 802.5 hours Start 2021.03.17 @ 00:18:32 End 2021.03.20 @ 15:59:37 Sessions 15 Manual Loads 0 Difficulty Rogue Special Mode None Game No. 557 Rogue 553 Adventurer 4 Explorer 0 Win Type - Total 88 Types 67/9/4/4/2/0/0/1/1 Lore% 95 Gallery% 97 Achievement% 96 Wizard Run 0 Options --------- ASCII 0 Keyboard 1 Movement Vi Keybinds 0 Fullscreen 0 Font 16/Terminus Map View 76x50 Tactical HUD 1 Map Filters NONE Filters NONE Steam 1 RUN: 1972b0e7-01bf-4a17-8bad-8a2c7ce5f48c